Workbook

Sheet リスト (hidden)
B2: リスト
B4: 公共工事等又は物品役務等の区分 | C4: 契約の相手方の区分 | D4: 一般競争入札・指名競争入札の別 | E4: 総合評価落札方式実施の別 | F4: 随意契約の区分 | G4: 随意契約の見直し | H4: 見直し実施年度 | I4: 一括調達形態
A5: 1 | B5: 公共工事等 | C5: 所管公益法人 | D5: 一般競争入札 | E5: 総合評価実施 | F5: 企画競争 | G5: 引き続き競争入札，企画競争又は公募を実施 | H5: 平成24年度 | I5: 近隣官署一括
A6: 2 | B6: 物品役務等 | C6: その他の公益法人 | D6: 指名競争入札 | E6: 価格競争 | F6: 公募 | G6: 事務・事業の中止 | H6: 平成25年度 | I6: 合同庁舎一括
A7: 3 | C7: 独立行政法人等 | F7: 不落・不調による随意契約 | G7: 競争入札に移行 | H7: 平成26年度以降 | I7: 管区一括
A8: 4 | C8: 特殊法人等 | F8: 契約の性質又は目的が競争を許さない場合 | G8: 企画競争に移行
A9: 5 | C9: 特定民間法人等 | F9: 緊急の必要により競争に付することができない場合 | G9: 公募に移行
A10: 6 | C10: その他の法人等 | F10: 競争に付することが不利と認められる場合 | G10: 随意契約によらざるを得ないもの
A11: 7 | F11: 特例政令に該当する場合
A12: 8 | F12: 秘密随意契約
A13: 9 | F13: 随意契約（その他）
A14: 10

Sheet 別表３
A1: 公共調達の適正化について（平成18年8月25日付財計第2017号）に基づく競争入札に係る情報の公表（物品役務等）
K2: 令和5年4月分
A3: No. | B3: 物品役務等の名称及び数量 | C3: 契約担当官等の氏名並びにその所属する部局の名称及び所在地 | D3: 契約を締結した日 | E3: 契約の相手方の商号又は名称及び住所 | F3: 法人番号 | G3: 一般競争入札・指名競争入札の別 (総合評価の実施) | H3: 予定価格 （円） （税込） | I3: 契約金額 （円） （税込） | J3: 落札率 (％) | K3: 備 考
A4: 1 | B4: 神戸少年鑑別所在所者用給食366日分 | C4: 支出負担行為担当官 神戸少年鑑別所長 吉田 智子 （兵庫県神戸市兵庫区下祇園町40-7） | D4: 2023-04-01 | E4: 一栄給食株式会社 兵庫県尼崎市大庄北2-22-6 | F4: 8140001047671 | G4: 一般競争入札 | H4: 13444312 | I4: 12322368 | J4: =ROUNDDOWN(I4/H4,3) -> 0.916
A5: 2 | B5: 鹿児島第2地方合同庁舎エレベーター保守業務委託 | C5: 支出負担行為担当官 鹿児島地方法務局長 林 健児 （鹿児島県鹿児島市鴨池新町1-2） | D5: 2023-04-03 | E5: 日本オーチス・エレベータ株式会社 福岡県福岡市博多区博多駅南1-2-13 | F5: 9010001075825 | G5: 一般競争入札 | H5: 22987 | I5: 12158 | J5: =ROUNDDOWN(I5/H5,3) -> 0.528 | K5: 一括調達（福岡管区気象台、自衛隊鹿児島地方協力本部、九州地方環境事務所、九州公安調査局、九州厚生局、【第十管区海上保安本部】） 予定価格総額 1,782,000円 契約金額総額 942,480円
A6: 3 | B6: 自家用電気工作物保安管理業務委託契約 | C6: 支出負担行為担当官 宮崎地方法務局長 山内 恵 （宮崎県宮崎市別府町1-1） | D6: 2023-04-03 | E6: 九州電気管理協同組合 福岡県福岡市博多区博多駅南1-8-12 | F6: 1290005003506 | G6: 一般競争入札 | H6: 55440 | I6: 43948 | J6: =ROUNDDOWN(I6/H6,3) -> 0.792 | K6: 一括調達（【宮崎労働局】） 予定価格総額 1,451,920円 契約金額総額 1,353,000円
A7: 4 | B7: 神奈川労働局管内管理庁における消防設備保守点検業務委託契約 | C7: 支出負担行為担当官代理 横浜地方法務局次長 高木 一浩 （神奈川県横浜市中区北仲通5-57） | D7: 2023-04-03 | E7: ヤマトエンジニアリング株式会社 東京都江東区東陽5-32-15 | F7: 4010401034765 | G7: 一般競争入札 | H7: 59613 | I7: 46076 | J7: =ROUNDDOWN(I7/H7,3) -> 0.772 | K7: 一括調達（【神奈川労働局】） 予定価格総額 1,608,200円 契約金額総額 1,243,000円
A8: 5 | B8: 印刷用上質紙等購入 | C8: 支出負担行為担当官 金沢地方検察庁検事正 𠮷田 克久 （石川県金沢市大手町6-15） | D8: 2023-04-03 | E8: 株式会社中島商店 石川県金沢市十間町8-1 | F8: 3220001004743 | G8: 一般競争入札 | H8: 84094 | I8: 52261 | J8: =ROUNDDOWN(I8/H8,3) -> 0.621 | K8: 単価契約 一括調達（北陸総合通信局、北陸財務局、金沢国税局、国土地理院北陸地方測量部、福井労働局） 予定価格総額 8,394,517円 契約金額総額 5,185,680円
A9: 6 | B9: 神奈川労働局内14官署における自家用電気工作物保安管理業務委託契約 | C9: 支出負担行為担当官代理 横浜地方法務局次長 高木 一浩 （神奈川県横浜市中区北仲通5-57） | D9: 2023-04-03 | E9: 株式会社ハマ・メンテ 神奈川県横浜市瀬谷区下瀬谷3-49-7 | F9: 4020001045609 | G9: 一般競争入札 | H9: 105808 | I9: 78330 | J9: =ROUNDDOWN(I9/H9,3) -> 0.74 | K9: 一括調達（【神奈川労働局】） 予定価格総額 3,952,427円 契約金額総額 2,926,000円
A10: 7 | B10: 機械警備業務（所沢合同庁舎）一式 | C10: 支出負担行為担当官 さいたま地方検察庁検事正 林 秀行 （埼玉県さいたま市浦和区高砂3-16-58） | D10: 2023-04-03 | E10: セコム株式会社 東京都渋谷区神宮前1-5-1 | F10: 6011001035920 | G10: 一般競争入札 | H10: 88109 | I10: 81840 | J10: =ROUNDDOWN(I10/H10,3) -> 0.928 | K10: 一括調達【埼玉労働局】 予定価格総額5,371,867円 契約金額総額4,989,600円
A11: 8 | B11: 神奈川労働局内19官署における植栽管理業務委託契約 | C11: 支出負担行為担当官代理 横浜地方法務局次長 高木 一浩 （神奈川県横浜市中区北仲通5-57） | D11: 2023-04-03 | E11: 生駒植木株式会社 神奈川県横浜市戸塚区小雀町1805 | F11: 6020001007061 | G11: 一般競争入札 | H11: 103978 | I11: 89502 | J11: =ROUNDDOWN(I11/H11,3) -> 0.86 | K11: 一括調達（【神奈川労働局】） 予定価格総額 2,773,065円 契約金額総額 2,387,000円
A12: 9 | B12: 空調設備機器保守・点検業務委託契約 | C12: 支出負担行為担当官 宮崎地方法務局長 山内 恵 （宮崎県宮崎市別府町1-1） | D12: 2023-04-03 | E12: 株式会社菱熱宮崎支店 宮崎県宮崎市宮脇町95-3 | F12: 3290001017474 | G12: 一般競争入札 | H12: 113300 | I12: 95450 | J12: =ROUNDDOWN(I12/H12,3) -> 0.842 | K12: 一括調達（【宮崎労働局】） 予定価格総額 3,678,675円 契約金額総額 2,585,000円
A13: 10 | B13: 鹿児島第2地方合同庁舎非常用発電機保守業務委託 | C13: 支出負担行為担当官 鹿児島地方法務局長 林 健児 （鹿児島県鹿児島市鴨池新町1-2） | D13: 2023-04-03 | E13: 株式会社明電エンジニアリング九州支店 福岡県福岡市博多区住吉5-5-3 | F13: 1010701028239 | G13: 一般競争入札 | H13: 105731 | I13: 99847 | J13: =ROUNDDOWN(I13/H13,3) -> 0.944 | K13: 一括調達（福岡管区気象台、自衛隊鹿児島地方協力本部、九州地方環境事務所、九州公安調査局、九州厚生局、【第十管区海上保安本部】） 予定価格総額 1,689,000円 契約金額総額 1,595,000円
A14: 11 | B14: 令和5年度東京地方裁判所民事執行部庁舎等自家用電気工作物保安管理委託業務 | C14: 支出負担行為担当官 東京地方検察庁検事正 久木元 伸 （東京都千代田区霞が関1-1-1） | D14: 2023-04-03 | E14: 株式会社南アルプス 山梨県南アルプス市下高砂280-1 | F14: 8090001007813 | G14: 一般競争入札 | H14: - | I14: 126420 | J14: =ROUNDDOWN(I14/H14,3) ->  | K14: 一括調達（【東京地方裁判所】） 契約金額総額 3,196,600円 同種のほかの契約の予定価格を類推されるおそれがあるため、予定価格非公開
A15: 12 | B15: 神奈川労働局内11官署における環境衛生業務委託契約 | C15: 支出負担行為担当官代理 横浜地方法務局次長 高木 一浩 （神奈川県横浜市中区北仲通5-57） | D15: 2023-04-03 | E15: 株式会社新東美装 東京都世田谷区上用賀4-3-8 | F15: 3010901005416 | G15: 一般競争入札 | H15: 189568 | I15: 161556 | J15: =ROUNDDOWN(I15/H15,3) -> 0.852 | K15: 一括調達（【神奈川労働局】） 予定価格総額 2,767,325円 契約金額総額 2,358,400円
A16: 13 | B16: 令和5年度東京地方裁判所民事執行センター外6庁舎構内植栽地の管理業務 | C16: 支出負担行為担当官 東京地方検察庁検事正 久木元 伸 （東京都千代田区霞が関1-1-1） | D16: 2023-04-03 | E16: 生駒植木株式会社 神奈川県横浜市戸塚区小雀町1805 | F16: 6020001007061 | G16: 一般競争入札 | H16: - | I16: 162140 | J16: =ROUNDDOWN(I16/H16,3) ->  | K16: 一括調達（【東京地方裁判所】） 契約金額総額 5,720,000円 同種のほかの契約の予定価格を類推されるおそれがあるため、予定価格非公開
A17: 14 | B17: 令和5年度東京労働局消防設備保守点検業務委託 | C17: 支出負担行為担当官 東京法務局長 坂本 佳胤 （東京都千代田区九段南1-1-15） | D17: 2023-04-03 | E17: 光栄テクノサービス株式会社 東京都江戸川区東瑞江1-20-3 | F17: 6011701009240 | G17: 一般競争入札 | H17: 337814 | I17: 164482 | J17: =ROUNDDOWN(I17/H17,3) -> 0.486 | K17: 一括調達（独立行政法人高齢・障害・求職者雇用支援機構、東京地方検察庁、東京地方裁判所、【東京労働局】） 予定価格総額 5,894,242円（税抜） 契約金額総額 2,870,000円（税抜）
A18: 15 | B18: 鹿児島第2地方合同庁舎吸収式冷温水機保守業務委託 | C18: 支出負担行為担当官 鹿児島地方法務局長 林 健児 （鹿児島県鹿児島市鴨池新町1-2） | D18: 2023-04-03 | E18: 有限会社熊南空調システム 熊本県熊本市南区城南町丹生宮994-1 | F18: 4330002025446 | G18: 一般競争入札 | H18: 205641 | I18: 165264 | J18: =ROUNDDOWN(I18/H18,3) -> 0.803 | K18: 一括調達（福岡管区気象台、自衛隊鹿児島地方協力本部、九州地方環境事務所、九州公安調査局、九州厚生局、【第十管区海上保安本部】） 予定価格総額 3,285,000円 契約金額総額 2,640,000円
A19: 16 | B19: 自家用電気工作物保安管理業務（所沢合同庁舎）一式 | C19: 支出負担行為担当官 さいたま地方検察庁検事正 林 秀行 （埼玉県さいたま市浦和区高砂3-16-58） | D19: 2023-04-03 | E19: 株式会社電気管理協会 茨城県水戸市元石川町822-1 | F19: 6050001005764 | G19: 一般競争入札 | H19: 194621 | I19: 174240 | J19: =ROUNDDOWN(I19/H19,3) -> 0.895 | K19: 一括調達【埼玉労働局】 予定価格総額2,171,400円 契約金額総額1,944,000円
A20: 17 | B20: 自家用電気工作物保安管理業務 | C20: 支出負担行為担当官 鹿児島地方法務局長 林 健児 （鹿児島県鹿児島市鴨池新町1-2） | D20: 2023-04-03 | E20: 一般社団法人九州電気管理技術者協会 福岡県福岡市博多区博多駅南1-3-11 | F20: 2290005005261 | G20: 一般競争入札 | H20: - | I20: 199320 | J20: =ROUNDDOWN(I20/H20,3) ->  | K20: 同種のほかの契約の予定価格を類推されるおそれがあるため公表しない。 一括調達（【熊本国税局】、鹿児島労働局、九州農政局、自衛隊鹿児島協力本部、九州農政局南部九州土地改良調査管理事務所） 契約金額総額 5,111,040円
A21: 18 | B21: 清掃及び建築物環境衛生管理業務委託契約 | C21: 支出負担行為担当官 宮崎地方法務局長 山内 恵 （宮崎県宮崎市別府町1-1） | D21: 2023-04-03 | E21: 株式会社美装福原 福岡県飯塚市立岩1309-1 | F21: 5290001070521 | G21: 一般競争入札 | H21: 553300 | I21: 201600 | J21: =ROUNDDOWN(I21/H21,3) -> 0.364 | K21: 一括調達（【宮崎労働局】） 予定価格総額 9,970,485円 契約金額総額 7,654,900円
A22: 19 | B22: 令和5年度東京地方裁判所民事執行部庁舎等昇降機設備保守契約 | C22: 支出負担行為担当官 東京地方検察庁検事正 久木元 伸 （東京都千代田区霞が関1-1-1） | D22: 2023-04-03 | E22: ジャパンエレベーターサービスホールディングス株式会社 東京都中央区日本橋1-3-13 | F22: 5010001019182 | G22: 一般競争入札 | H22: - | I22: 217800 | J22: =ROUNDDOWN(I22/H22,3) ->  | K22: 一括調達（【東京地方裁判所】） 再度公告入札 契約金額総額 7,999,200円 同種のほかの契約の予定価格を類推されるおそれがあるため、予定価格非公開
A23: 20 | B23: 令和5年度昇降機保守点検業務委託 | C23: 支出負担行為担当官 東京法務局長 坂本 佳胤 （東京都千代田区九段南1-1-15） | D23: 2023-04-03 | E23: エレベーターコミュニケーションズ株式会社 東京都品川区南大井6-16-16 | F23: 5010801017897 | G23: 一般競争入札 | H23: 343494 | I23: 227977 | J23: =ROUNDDOWN(I23/H23,3) -> 0.663 | K23: 一括調達（【東京労働局】、独立行政法人高齢・障害・求職者雇用支援機構、東京地方検察庁） 予定価格総額 3,118,934円（税抜） 契約金額総額 2,070,000円（税抜）
A24: 21 | B24: 清掃業務（所沢合同庁舎） 一式 | C24: 支出負担行為担当官 さいたま地方検察庁検事正 林 秀行 （埼玉県さいたま市浦和区高砂3-16-58） | D24: 2023-04-03 | E24: 株式会社SxJAPAN 埼玉県新座市野火止7-10-55 | F24: 8030001140297 | G24: 一般競争入札 | H24: 324097 | I24: 260106 | J24: =ROUNDDOWN(I24/H24,3) -> 0.802 | K24: 一括調達【埼玉労働局】 予定価格総額15,323,556円 契約金額総額12,298,000円
A25: 22 | B25: 鹿児島第2地方合同庁舎清掃業務委託契約 | C25: 支出負担行為担当官 鹿児島地方法務局長 林 健児 （鹿児島県鹿児島市鴨池新町1-2） | D25: 2023-04-03 | E25: 株式会社利光新陽サービス 鹿児島県鹿児島市城山町16-26 | F25: 2340001006679 | G25: 一般競争入札 | H25: 290213 | I25: 278883 | J25: =ROUNDDOWN(I25/H25,3) -> 0.96 | K25: 一括調達（福岡管区気象台、自衛隊鹿児島地方協力本部、九州地方環境事務所、九州公安調査局、九州厚生局、【第十管区海上保安本部】） 予定価格総額 4,636,000円 契約金額総額 4,455,000円
A26: 23 | B26: 函館地方合同庁舎昇降機設備保守業務 | C26: 支出負担行為担当官代理 函館地方法務局次長 森山 昌弘 （北海道函館市新川町25-18） | D26: 2023-04-03 | E26: ジャパンエレベーターサービス北海道株式会社 北海道札幌市豊平区水車町6-3-1 | F26: 6430001068120 | G26: 一般競争入札 | H26: 796495 | I26: 285227 | J26: =ROUNDDOWN(I26/H26,3) -> 0.358 | K26: 一括調達（函館行政監視行政相談センター、函館保護観察所、函館労働基準監督署、北海道農政事務所、北海道森林管理局函館事務所、自衛隊函館地方協力本部函館募集案内所） 予定価総額 1,669,800円 契約金額総額 597,960円
A27: 24 | B27: 令和5年度益田地方合同庁舎昇降機保守点検業務委託契約 | C27: 支出負担行為担当官 松江地方法務局長 西岡 典子 （島根県松江市東朝日町192-3） | D27: 2023-04-03 | E27: 日本オーチス・エレベータ株式会社 東京都中央区新川2-27-1 | F27: 9010001075825 | G27: 一般競争入札 | H27: 345086 | I27: 321200 | J27: =ROUNDDOWN(I27/H27,3) -> 0.93 | K27: 一括調達（島根労働局） 予定価格総額 1,035,260円 契約金額総額 963,600円
A28: 25 | B28: 横浜港北地方合同庁舎ほか7庁における空調設備冷房切替保守点検業務委託契約 | C28: 支出負担行為担当官代理 横浜地方法務局次長 高木 一浩 （神奈川県横浜市中区北仲通5-57） | D28: 2023-04-03 | E28: ケイズエーアイエム株式会社 神奈川県横浜市都筑区牛久保西1-24-41 | F28: 1020002062928 | G28: 一般競争入札 | H28: 398856 | I28: 362032 | J28: =ROUNDDOWN(I28/H28,3) -> 0.907 | K28: 一括調達（【神奈川労働局】） 予定価格総額 6,592,663円 契約金額総額 5,984,000円
A29: 26 | B29: 合同庁舎空調機保守管理業務（種子島合同庁舎） | C29: 支出負担行為担当官 鹿児島地方法務局長 林 健児 （鹿児島県鹿児島市鴨池新町1-2） | D29: 2023-04-03 | E29: 有限会社熊南空調システム 熊本県熊本市南区城南町丹生宮994-1 | F29: 4330002025446 | G29: 一般競争入札 | H29: - | I29: 383328 | J29: =ROUNDDOWN(I29/H29,3) ->  | K29: 同種のほかの契約の予定価格を類推されるおそれがあるため公表しない。 一括調達（【熊本国税局】、鹿児島労働局、自衛隊鹿児島地方協力本部、第十管区海上保安本部、九州防衛局、西之表港湾事務所、鹿児島地方検察庁、福岡管区気象台） 予定価格総額 - 契約金額総額 3,168,000円
A30: 27 | B30: 名古屋合同庁舎第1号館冷温水発生機保守点検業務請負契約 | C30: 支出負担行為担当官 名古屋法務局長 加藤 裕 （愛知県名古屋市中区三の丸2-2-1） | D30: 2023-04-03 | E30: 株式会社ライズテクノサービス 大阪府貝塚市橋本42-5 | F30: 2120101046531 | G30: 一般競争入札 | H30: 513741 | I30: 387728 | J30: =ROUNDDOWN(I30/H30,3) -> 0.754 | K30: 一括調達（東海北陸厚生局・愛知労働局・中部運輸局・東海防衛支局） 予定価格総額 1,166,005 契約金額総額 880,000
A31: 28 | B31: 令和5年度徳之島合同庁舎清掃業務契約 | C31: 支出負担行為担当官 鹿児島地方検察庁検事正 古賀 栄美 （鹿児島県鹿児島市山下町13-10） | D31: 2023-04-03 | E31: 株式会社美装福原 福岡県飯塚市立岩1309-1 | F31: 5290001070521 | G31: 一般競争入札 | H31: 529758 | I31: 434024 | J31: =ROUNDDOWN(I31/H31,3) -> 0.819 | K31: 一括調達（自衛隊鹿児島地方協力本部、【鹿児島労働局】） 契約総額 1,895,300円 予定価格総額 2,313,357円
A32: 29 | B32: 名古屋合同庁舎第1号館建築物環境衛生管理業務請負契約 | C32: 支出負担行為担当官 名古屋法務局長 加藤 裕 （愛知県名古屋市中区三の丸2-2-1） | D32: 2023-04-03 | E32: 株式会社ナシヨナルメンテナンス 滋賀県彦根市犬方町790 | F32: 9160001008547 | G32: 一般競争入札 | H32: 557176 | I32: 460775 | J32: =ROUNDDOWN(I32/H32,3) -> 0.826 | K32: 一括調達（東海北陸厚生局・愛知労働局・中部運輸局・東海防衛支局） 予定価格総額 1,449,847 契約金額総額 1,199,000
A33: 30 | B33: 令和5年度益田地方合同庁舎清掃等業務委託契約 | C33: 支出負担行為担当官 松江地方法務局長 西岡 典子 （島根県松江市東朝日町192-3） | D33: 2023-04-03 | E33: 三光ビル管理株式会社 島根県益田市乙吉町イ202-1 | F33: 6280001005015 | G33: 一般競争入札 | H33: 472238 | I33: 472238 | J33: =ROUNDDOWN(I33/H33,3) -> 1 | K33: 一括調達（島根労働局） 予定価格総額 1,204,500円 契約金額総額 1,204,500円
A34: 31 | B34: 空気調和設備等機器保守点検業務委託契約 | C34: 支出負担行為担当官 鳥取地方法務局長 江原 幸紀 （鳥取県鳥取市東町2-302） | D34: 2023-04-03 | E34: 株式会社オークスコーポレーション 岡山県岡山市南区豊浜町9-24 | F34: 1260001008585 | G34: 一般競争入札 | H34: 611424 | I34: 474703 | J34: =ROUNDDOWN(I34/H34,3) -> 0.776 | K34: 一括調達（鳥取労働局、自衛隊鳥取地方協力本部） 予定価格総額 1,584,000円 契約金額総額 1,229,800円
A35: 32 | B35: 令和5年度東京労働局自家用電気工作物保安管理業務委託 | C35: 支出負担行為担当官 東京法務局長 坂本 佳胤 （東京都千代田区九段南1-1-15） | D35: 2023-04-03 | E35: 一般財団法人関東電気保安協会 東京都港区港南5-5-3 | F35: 8013305001704 | G35: 一般競争入札 | H35: 630710 | I35: 484196 | J35: =ROUNDDOWN(I35/H35,3) -> 0.767 | K35: 一括調達（【東京労働局】、独立行政法人高齢・障害・求職者雇用支援機構、東京地方検察庁） 予定価格総額 8,869,536円（税抜） 契約金額総額 6,808,750円（税抜）
A36: 33 | B36: 徳島地方合同庁舎ほか3庁自家用電気工作物保安管理業務委託 一式 | C36: 支出負担行為担当官 徳島地方法務局長 横山 紫穂 （徳島県徳島市徳島町城内6-6） | D36: 2023-04-03 | E36: 一般財団法人四国電気保安協会 香川県高松市福岡町3-31-15 | F36: 5470005005298 | G36: 一般競争入札 | H36: 868496 | I36: 498956 | J36: =ROUNDDOWN(I36/H36,3) -> 0.574 | K36: 一括調達（四国行政評価支局、四国地方更生保護委員会、徳島労働局、徳島地方検察庁） 予定価格総額 1,099,085円 契約金額総額 631,356円
A37: 34 | B37: 旭川刑務所庁舎等エレベーター保守点検 | C37: 支出負担行為担当官 旭川刑務所長 福島 利充 （北海道旭川市東鷹栖3-20-620） | D37: 2023-04-03 | E37: ジャパンエレベーターサービス北海道株式会社 北海道札幌市豊平区水車町6-3-1 | F37: 6430001068120 | G37: 一般競争入札 | H37: 1214400 | I37: 501600 | J37: =ROUNDDOWN(I37/H37,3) -> 0.413
A38: 35 | B38: 青森法務総合庁舎エレベーター保守業務 | C38: 支出負担行為担当官 青森地方検察庁検事正 織田 武士 （青森県青森市長島1-3-25） | D38: 2023-04-03 | E38: ジャパンエレベーターサービス城西株式会社 東京都新宿区新宿6-29-8 | F38: 9011101072159 | G38: 一般競争入札 | H38: 1187808 | I38: 541766 | J38: =ROUNDDOWN(I38/H38,3) -> 0.456 | K38: 一括調達（青森地方法務局、東北地方更生保護委員会、東北公安調査局、東北農政局） 予定価格総額 1,753,804円 契約金額総額 799,920円
A39: 36 | B39: 機械警備委託業務契約（青森第二合同庁舎・青森法務総合庁舎） | C39: 支出負担行為担当官代理 青森地方法務局次長 佐藤 純一 （青森県青森市長島1-3-5） | D39: 2023-04-03 | E39: セコム株式会社 東京都渋谷区神宮前1-5-1 | F39: 6011001035920 | G39: 一般競争入札 | H39: - | I39: 549419 | J39: =ROUNDDOWN(I39/H39,3) ->  | K39: 同種のほかの契約の予定価格を類推されるおそれがあるため予定価格を公表しない。 一括調達（青森地方検察庁、仙台出入国在留管理局、東北地方更生保護委員会、東北公安調査局、【仙台国税局】、青森労働局、東北農政局、資源エネルギー庁、自衛隊青森地方協力本部） 予定価格総額 - 契約金額総額 1,114,080円
A40: 37 | B40: エレベーター設備保守点検業務契約 | C40: 支出負担行為担当官 大津地方検察庁検事正 花﨑 政之 （滋賀県大津市京町3-1-1） | D40: 2023-04-03 | E40: ジャパンエレベーターサービス関西株式会社 大阪府大阪市中央区伏見町4-2-14 | F40: 9010001171252 | G40: 一般競争入札 | H40: 1170085 | I40: 578160 | J40: =ROUNDDOWN(I40/H40,3) -> 0.494
A41: 38 | B41: 福井春山合同庁舎塵芥物収集処理業務 | C41: 支出負担行為担当官 福井地方検察庁検事正 築 雅子 （福井県福井市春山1-1-54） | D41: 2023-04-03 | E41: 株式会社相互環境公社 福井県福井市角折町6-1 | F41: 5210001001822 | G41: 一般競争入札 | H41: - | I41: 584548 | J41: =ROUNDDOWN(I41/H41,3) ->  | K41: 単価契約 一括調達（【北陸財務局】、福井地方法務局、名古屋出入国在留管理局、中部地方更生保護委員会、公安調査局、大阪税関、福井税務署、近畿厚生局、福井労働局、自衛隊福井地方協力本部、福井森林管理署） 予定価格総額 非公開 同種のほかの契約の予定価格を類推させるおそれがあるため公表しない。 契約金額総額1,404,150円
A42: 39 | B42: 仙台法務局塩釜支局庁舎ほか3庁舎エレベーター保守点検業務委託契約 | C42: 支出負担担当官代理 仙台法務局総務管理官 小池 正大 （宮城県仙台市青葉区春日町7-25） | D42: 2023-04-03 | E42: ジャパンエレベーターサービス城西株式会社 東京都新宿区新宿6-29-8 | F42: 9011101072159 | G42: 一般競争入札 | H42: 951873 | I42: 597036 | J42: =ROUNDDOWN(I42/H42,3) -> 0.627 | K42: 一括調達（仙台法務局、仙台地方検察庁、自衛隊宮城地方協力本部、名取市） 予定価格総額 1,288,056円 契約金額総額 807,840円
A43: 40 | B43: エレベーター設備保守管理業務委託契約 | C43: 支出負担行為担当官 福島地方法務局長 長橋 範夫 （福島県福島市霞町1-46） | D43: 2023-04-03 | E43: 菱光リフト東北株式会社 宮城県仙台市青葉区北根3-26-6 | F43: 1370001001281 | G43: 一般競争入札 | H43: 1178029 | I43: 607200 | J43: =ROUNDDOWN(I43/H43,3) -> 0.515 | K43: 一括調達（東北管区行政評価局、東北厚生局、福島労働局、仙台出入国在留管理局、福島地方検察庁、東北農政局） 予定価格総額 1,178,029円 契約金額総額 607,200円
A44: 41 | B44: 供託金等警備輸送業務委託契約 | C44: 支出負担行為担当官 釧路地方法務局長 西山 悟 （北海道釧路市幸町10-3） | D44: 2023-04-03 | E44: NXキャッシュ・ロジスティクス株式会社 東京都千代田区神田和泉町2 | F44: 5010001223230 | G44: 一般競争入札 | H44: 1003200 | I44: 613800 | J44: =ROUNDDOWN(I44/H44,3) -> 0.611
A45: 42 | B45: 建築物環境衛生管理業務委託契約 | C45: 支出負担行為担当官 鳥取地方法務局長 江原 幸紀 （鳥取県鳥取市東町2-302） | D45: 2023-04-03 | E45: 株式会社オークスコーポレーション 岡山県岡山市南区豊浜町9-24 | F45: 1260001008585 | G45: 一般競争入札 | H45: 1055450 | I45: 622182 | J45: =ROUNDDOWN(I45/H45,3) -> 0.589 | K45: 一括調達（自衛隊鳥取地方協力本部） 予定価格総額 1,231,564円 契約金額総額 726,000円
A46: 43 | B46: 供託金警備輸送業務一式 | C46: 支出負担行為担当官 宮崎地方法務局長 山内 恵 （宮崎県宮崎市別府町1-1） | D46: 2023-04-03 | E46: NXキャッシュ・ロジスティクス株式会社 東京都千代田区神田和泉町2 | F46: 5010001223230 | G46: 一般競争入札 | H46: 1520652 | I46: 633600 | J46: =ROUNDDOWN(I46/H46,3) -> 0.416
A47: 44 | B47: 宇部地方合同庁舎エレベーター保守業務請負契約 | C47: 支出負担行為担当官 山口地方法務局長 中島 仁志 （山口県山口市中河原町6-16） | D47: 2023-04-03 | E47: 日本オーチス・エレベータ株式会社 東京都中央区新川2-27-1 | F47: 9010001075825 | G47: 一般競争入札 | H47: 761502 | I47: 649523 | J47: =ROUNDDOWN(I47/H47,3) -> 0.852 | K47: 一括調達（門司税関、広島検疫所、第七管区海上保安本部、山口労働局、中国地方整備局） 予定価格総額 2,213,028円 契約金額総額 1,887,600円
A48: 45 | B48: 松山法務総合庁舎ほか6施設消防用設備保守点検業務 | C48: 支出負担行為担当官 松山地方検察庁検事正 山口 敬之 （愛媛県松山市一番町4-4-1） | D48: 2023-04-03 | E48: 株式会社オークスコーポレーション 岡山県岡山市南区豊浜町9-24 | F48: 1260001008585 | G48: 一般競争入札 | H48: 1216424 | I48: 660000 | J48: =ROUNDDOWN(I48/H48,3) -> 0.542 | K48: 一括調達（松山地方法務局、四国地方更生保護委員会、四国公安調査局）
A49: 46 | B49: 函館地方合同庁舎芝生及び樹木保守管理業務 | C49: 支出負担行為担当官代理 函館地方法務局次長 森山 昌弘 （北海道函館市新川町25-18） | D49: 2023-04-03 | E49: 共立管財株式会社 神奈川県横浜市西区みなとみらい3-6-3MMパークビル | F49: 4020001026030 | G49: 一般競争入札 | H49: 670465 | I49: 666554 | J49: =ROUNDDOWN(I49/H49,3) -> 0.994 | K49: 一括調達（函館行政監視行政相談センター、函館保護観察所、函館労働基準監督署、函館公共職業安定所、北海道農政事務所、北海道森林管理局函館事務所、自衛隊函館地方協力本部函館募集案内所） 予定価総額 1,526,907円 契約金額総額 1,518,000円
A50: 47 | B50: 山口地方検察庁庁舎等自家用電気工作物保安管理業務委託契約 | C50: 支出負担行為担当官 山口地方検察庁検事正 安藤 浄人 （山口県山口市駅通り1-1-2） | D50: 2023-04-03 | E50: 株式会社e-Lab 山口県山口市小郡新町2-8-21 | F50: 8250001016995 | G50: 一般競争入札 | H50: 1023056 | I50: 666600 | J50: =ROUNDDOWN(I50/H50,3) -> 0.651 | K50: 一括調達（山口地方法務局、山口刑務所）
A51: 48 | B51: 佐賀地方検察庁庁舎機械警備業務請負契約 | C51: 支出負担行為担当官 佐賀地方検察庁検事正 金山 陽一 （佐賀県佐賀市中の小路5-25） | D51: 2023-04-03 | E51: 中央警備保障株式会社 佐賀県佐賀市高木瀬東3-3-10 | F51: 3300001000478 | G51: 一般競争入札 | H51: 1168200 | I51: 673200 | J51: =ROUNDDOWN(I51/H51,3) -> 0.576 | K51: 国庫債務負担行為
A52: 49 | B52: 九段第2合同庁舎入退館管理システム保守業務一式 | C52: 支出負担行為担当官 東京法務局長 坂本 佳胤 （東京都千代田区九段南1-1-15） | D52: 2023-04-03 | E52: 富士テレコム株式会社 東京都新宿区西新宿6-5-1 | F52: 6011401007346 | G52: 一般競争入札 | H52: 682383 | I52: 675961 | J52: =ROUNDDOWN(I52/H52,3) -> 0.99 | K52: 一括調達（東京法務局、東京国税不服審判所、東京航空局） 予定価格総額 1,443,586円（税込） 契約金額総額 1,430,000円（税込）
A53: 50 | B53: 横浜支局における新型コロナウイルス感染症検査業務委託契約 | C53: 支出負担行為担当官 東京出入国在留管理局長 宮尾 芳彰 （東京都港区港南5-5-30） | D53: 2023-04-03 | E53: 医療法人社団綾和会 静岡県浜松市南区白羽町26 | F53: 5080405001449 | G53: 一般競争入札 | H53: 1949475 | I53: 688050 | J53: =ROUNDDOWN(I53/H53,3) -> 0.352 | K53: 単価契約
A54: 51 | B54: 徳島地方合同庁舎事業系一般廃棄物回収処理及び産業廃棄物回収運搬業務 一式 | C54: 支出負担行為担当官 徳島地方法務局長 横山 紫穂 （徳島県徳島市徳島町城内6-6） | D54: 2023-04-03 | E54: 有限会社山岡清掃社 徳島県徳島市北島田町3-8-1 | F54: 6480002005035 | G54: 一般競争入札 | H54: 737393 | I54: 690257 | J54: =ROUNDDOWN(I54/H54,3) -> 0.936 | K54: 一括調達（四国行政評価支局、四国地方更生保護委員会、徳島労働局） 予定価格総額 1,663,044円 契約金額総額 1,556,386円
A55: 52 | B55: 横浜港北地方合同庁舎外5施設における警備業務委託 | C55: 支出負担行為担当官代理 横浜地方法務局次長 高木 一浩 （神奈川県横浜市中区北仲通5-57） | D55: 2023-04-03 | E55: 株式会社リンクファシリティーズ 神奈川県川崎市川崎区下並木62 | F55: 4080101004616 | G55: 一般競争入札 | H55: 747940 | I55: 692763 | J55: =ROUNDDOWN(I55/H55,3) -> 0.926 | K55: 一括調達（【神奈川労働局】） 予定価格総額 18,165,339円 契約金額総額 16,825,251円
A56: 53 | B56: 駐車場等交通誘導業務委託契約 | C56: 支出負担行為担当官 津地方法務局長 澤田 竜彦 （三重県津市丸之内26-8） | D56: 2023-04-03 | E56: 近畿ビルサービス株式会社 大阪府富田林市錦織北1-16-38 | F56: 1120101030783 | G56: 一般競争入札 | H56: 820486 | I56: 700290 | J56: =ROUNDDOWN(I56/H56,3) -> 0.853 | K56: 単価契約 一括調達（名古屋国税局、三重労働局） 予定価格総額 2,871,848円 契約金額総額 2,451,141円
A57: 54 | B57: 下田地方合同庁舎における清掃等業務一式請負契約 | C57: 支出負担行為担当官 静岡地方法務局長 蔦 啓一郎 （静岡県静岡市葵区追手町9-50） | D57: 2023-04-03 | E57: 株式会社MTS 東京都中央区日本橋蛎殻町1-17-2 | F57: 8010401124620 | G57: 一般競争入札 | H57: 763336 | I57: 713109 | J57: =ROUNDDOWN(I57/H57,3) -> 0.934 | K57: 再度公告入札 一括調達（静岡労働局、名古屋税関及び関東地方環境事務所） 予定価格総額 1,037,036円 契約金額総額 968,000円
A58: 55 | B58: 令和5年度墨田合同庁舎・町田地方合同庁舎交通誘導業務委託 | C58: 支出負担行為担当官 東京法務局長 坂本 佳胤 （東京都千代田区九段南1-1-15） | D58: 2023-04-03 | E58: 東神産業株式会社 神奈川県横浜市神奈川区松本町2-20-6 | F58: 8020001023833 | G58: 一般競争入札 | H58: 1272290 | I58: 713628 | J58: =ROUNDDOWN(I58/H58,3) -> 0.56 | K58: 一括調達（独立行政法人高齢・障害・求職者雇用支援機構、東京地方検察庁、東京地方裁判所、【東京労働局】） 予定価格総額 7,844,449円（税抜） 契約金額総額 4,400,000円（税抜）
A59: 56 | B59: 名古屋合同庁舎第1号館空調用自動制御設備及び中央監視装置保守点検業務請負契約 | C59: 支出負担行為担当官 名古屋法務局長 加藤 裕 （愛知県名古屋市中区三の丸2-2-1） | D59: 2023-04-03 | E59: アズビル株式会社ビルシステムカンパニー中部支社 愛知県名古屋市中区錦2-14-19 | F59: 9010001096367 | G59: 一般競争入札 | H59: 740195 | I59: 726990 | J59: =ROUNDDOWN(I59/H59,3) -> 0.982 | K59: 一括調達（東海北陸厚生局・愛知労働局・中部運輸局・東海防衛支局） 予定価格総額 1,679,971 契約金額総額 1,650,000
A60: 57 | B60: 合同庁舎空調機保守管理業務（延岡合同庁舎） | C60: 支出負担行為担当官 宮崎地方法務局長 山内 恵 （宮崎県宮崎市別府町1-1） | D60: 2023-04-03 | E60: 有限会社熊南空調システム 熊本県熊本市南区城南町丹生宮944-1 | F60: 4330002025446 | G60: 一般競争入札 | H60: - | I60: 731112 | J60: =ROUNDDOWN(I60/H60,3) ->  | K60: 一括調達（【熊本国税局】、宮崎地方検察庁、自衛隊協力本部） 予定総額 非公表 同種のほかの契約の予定価格を類推させるため公表しない。 契約金額総額 1,650,000円
A61: 58 | B61: 鹿児島第2地方合同庁舎警備業務委託契約 | C61: 支出負担行為担当官 鹿児島地方法務局長 林 健児 （鹿児島県鹿児島市鴨池新町1-2） | D61: 2023-04-03 | E61: 株式会社宮生企画 鹿児島県鹿児島市易居町2-5 5-A | F61: 3340001006091 | G61: 一般競争入札 | H61: 1018501 | I61: 743688 | J61: =ROUNDDOWN(I61/H61,3) -> 0.73 | K61: 一括調達（福岡管区気象台、自衛隊鹿児島地方協力本部、九州地方環境事務所、九州公安調査局、九州厚生局、【第十管区海上保安本部】） 予定価格総額 16,269,999円 契約金額総額 11,880,000円
A62: 59 | B62: 令和5年度名古屋拘置所通訳・翻訳人材派遣業務契約（ポルトガル語） | C62: 支出負担行為担当官 名古屋拘置所長 小川 雅之 （愛知県名古屋市東区白壁1-1） | D62: 2023-04-03 | E62: 株式会社フォーラムジャパン名古屋支店 愛知県名古屋市中村区名駅南1-16-28 | F62: 3010001028169 | G62: 一般競争入札 | H62: 1023000 | I62: 748836 | J62: =ROUNDDOWN(I62/H62,3) -> 0.732 | K62: 単価契約
A63: 60 | B63: 令和5年度高松出入国在留管理局浜ノ町分庁舎清掃業務 | C63: 支出負担行為担当官代理 高松出入国在留管理局監理官 加藤 剛 （香川県高松市丸の内1-1） | D63: 2023-04-03 | E63: 株式会社こころん 徳島県徳島市富田橋8-9-1-1001 | F63: 6480001011281 | G63: 一般競争入札 | H63: 1311016 | I63: 752400 | J63: =ROUNDDOWN(I63/H63,3) -> 0.573
A64: 61 | B64: 前橋法務総合庁舎及び高崎法務総合庁舎建築物衛生的環境維持管理業務委託 | C64: 支出負担行為担当官 前橋地方検察庁検事正 清野 憲一 （群馬県前橋市大手町3-2-1） | D64: 2023-04-03 | E64: 日本ビルシステム株式会社 茨城県水戸市千波町1961-1 | F64: 1050001033299 | G64: 一般競争入札 | H64: 1092740 | I64: 760540 | J64: =ROUNDDOWN(I64/H64,3) -> 0.695 | K64: 一括調達（関東地方更生保護委員会、前橋刑務所、東京出入国在留管理局、関東公安調査局）
A65: 62 | B65: 庁舎衛生的環境維持管理業務 | C65: 支出負担行為担当官 函館地方検察庁検事正 菱沼 洋 （北海道函館市上新川町1-13） | D65: 2023-04-03 | E65: 株式会社丸文林商店 北海道函館市元町28-24 | F65: 7440003000236 | G65: 一般競争入札 | H65: 1760000 | I65: 770000 | J65: =ROUNDDOWN(I65/H65,3) -> 0.437 | K65: 一括調達（北海道公安調査局）
A66: 63 | B66: 山口地方検察庁庁舎等消防用設備保守点検及び環境衛生管理業務委託契約 | C66: 支出負担行為担当官 山口地方検察庁検事正 安藤 浄人 （山口県山口市駅通り1-1-2） | D66: 2023-04-03 | E66: 株式会社テクノス 岡山県高梁市南町1483-2 | F66: 8260001026738 | G66: 一般競争入札 | H66: 2747046 | I66: 772200 | J66: =ROUNDDOWN(I66/H66,3) -> 0.281 | K66: 一括調達（山口地方法務局、山口刑務所）
A67: 64 | B67: 令和5年度介護福祉士実務者研修請負契約 | C67: 支出負担行為担当官代理 千葉刑務所分類教育部長 西田 朋司 （千葉県千葉市若葉区貝塚町192） | D67: 2023-04-03 | E67: 社会福祉法人初穂会 千葉県千葉市稲毛区萩台町380-2 | F67: 3040005002043 | G67: 一般競争入札 | H67: 1204500 | I67: 781000 | J67: =ROUNDDOWN(I67/H67,3) -> 0.648
A68: 65 | B68: 供託金等警備輸送委託 | C68: 支出負担行為担当官 大分地方法務局長 松村 亮 （大分県大分市荷揚町7-5） | D68: 2023-04-03 | E68: NXキャッシュ・ロジスティクス株式会社 東京都千代田区神田和泉町2 | F68: 5010001223230 | G68: 一般競争入札 | H68: 1048885 | I68: 792000 | J68: =ROUNDDOWN(I68/H68,3) -> 0.755
A69: 66 | B69: 令和5年度那覇第1地方合同庁舎塵芥処理業務請負契約 | C69: 支出負担行為担当官 那覇地方検察庁検事正 内藤 惣一郎 （沖縄県那覇市樋川1-15-15） | D69: 2023-04-03 | E69: 友平衛生社有限会社 沖縄県豊見城市字金良99-4 | F69: 6360002003109 | G69: 一般競争入札 | H69: 905799 | I69: 792534 | J69: =ROUNDDOWN(I69/H69,3) -> 0.874 | K69: 一括調達（人事院、那覇地方法務局、九州地方更生保護委員会、福岡出入国在留管理局、九州公安調査局、九州厚生局沖縄分室、沖縄気象台、国土地理院沖縄支所、沖縄奄美自然環境事務所） 予定価格総額 1,433,184円 契約金額総額 1,254,000円
A70: 67 | B70: 松山地方合同庁舎ほか1庁舎機械警備業務委託契約 | C70: 支出負担行為担当官 松山地方法務局長 松崎 元彦 （愛媛県松山市宮田町188-6） | D70: 2023-04-03 | E70: セコム株式会社 東京都渋谷区神宮前1-5-1 | F70: 6011001035920 | G70: 一般競争入札 | H70: 2010278 | I70: 794184 | J70: =ROUNDDOWN(I70/H70,3) -> 0.395 | K70: 一括調達（中国四国農政局、高松出入国在留管理局、四国厚生支局、中国四国管区警察局、四国地方厚生保護委員会、愛媛労働局、防衛省自衛隊） 予定価格総額 3,207,600円 契約金額総額 1,267,200円
A71: 68 | B71: 甲府地方法務局鰍沢支局電話交換機ほか購入契約 | C71: 支出負担行為担当官 甲府地方法務局長 佐々木 賢 （山梨県甲府市丸の内1-1-18） | D71: 2023-04-03 | E71: 東通ネットワーク株式会社 東京都中央区築地3-12-5 | F71: 6010001092261 | G71: 一般競争入札 | H71: 1689607 | I71: 797060 | J71: =ROUNDDOWN(I71/H71,3) -> 0.471
A72: 69 | B72: レンタカー賃貸借契約（7車種） | C72: 支出負担行為担当官 福岡地方検察庁検事正 髙橋 久志 （福岡県福岡市中央区六本松4-2-3） | D72: 2023-04-03 | E72: ニッポンレンタカー九州株式会社 福岡県福岡市博多区空港前2-5-40 | F72: 4350001001330 | G72: 一般競争入札 | H72: 923736 | I72: 804210 | J72: =ROUNDDOWN(I72/H72,3) -> 0.87 | K72: 再度公告入札 一括調達（九州地方更生保護委員会） 単価契約
A73: 70 | B73: 合同庁舎総合ビルメンテナンス業務（グループ8種子島合同庁舎） | C73: 支出負担行為担当官 鹿児島地方法務局長 林 健児 （鹿児島県鹿児島市鴨池新町1-2） | D73: 2023-04-03 | E73: 株式会社クリル 長崎県佐世保市三浦町1-15NSビル2階 | F73: 6310001007718 | G73: 一般競争入札 | H73: - | I73: 824484 | J73: =ROUNDDOWN(I73/H73,3) ->  | K73: 同種のほかの契約の予定価格を類推されるおそれがあるため公表しない。 一括調達（【熊本国税局】、鹿児島労働局、自衛隊鹿児島地方協力本部、第十管区海上保安本部、九州防衛局、西之表港湾事務所、鹿児島地方検察庁、福岡管区気象台） 予定価格総額 - 契約金額総額 6,815,600円
A74: 71 | B74: 横浜港北地方合同庁舎外4施設における清掃業務委託 | C74: 支出負担行為担当官代理 横浜地方法務局次長 高木 一浩 （神奈川県横浜市中区北仲通5-57） | D74: 2023-04-03 | E74: 有限会社総合ビルメンテナンス 千葉県我孫子市南新木4-23-2-103 | F74: 1040002096420 | G74: 一般競争入札 | H74: 951388 | I74: 828288 | J74: =ROUNDDOWN(I74/H74,3) -> 0.87 | K74: 一括調達（【神奈川労働局】） 予定価格総額 6,861,239円 契約金額総額 5,973,495円
A75: 72 | B75: 上半期翻訳・通訳派遣（4か国語 英語、タガログ語、スペイン語、ポルトガル語） | C75: 支出負担行為担当官 和歌山刑務所長 浦方 亀世 （和歌山県和歌山市加納383） | D75: 2023-04-03 | E75: 株式会社キャリアバンク 福岡県福岡市中央区天神2-14-2 | F75: 3290001018902 | G75: 一般競争入札 | H75: 1958880 | I75: 837716 | J75: =ROUNDDOWN(I75/H75,3) -> 0.427 | K75: 単価契約
A76: 73 | B76: 自家用電気工作物保安管理業務委託契約 | C76: 支出負担行為担当官 津地方法務局長 澤田 竜彦 （三重県津市丸之内26-8） | D76: 2023-04-03 | E76: 株式会社鈴鹿テクト 三重県鈴鹿市矢橋3-4-12 | F76: 2190001005119 | G76: 一般競争入札 | H76: 941795 | I76: 839224 | J76: =ROUNDDOWN(I76/H76,3) -> 0.891 | K76: 一括調達（中部管区行政評価局、名古屋税関、東海北陸厚生局、三重労働局、四日市港湾事務所、自衛隊三重地方協力本部、津地方検察庁） 予定価格総額 1,333,200円 契約金額総額 1,188,000円
A77: 74 | B77: 土佐山田及び中村地方合同庁舎における冷温水機保守点検業務委託契約 | C77: 支出負担行為担当官代理 高知地方法務局次長 村上 知弘 （高知県高知市栄田町2-2-10） | D77: 2023-04-03 | E77: 荏原冷熱システム株式会社 東京都大田区羽田旭町11-1 | F77: 1010801013446 | G77: 一般競争入札 | H77: 868273 | I77: 858350 | J77: =ROUNDDOWN(I77/H77,3) -> 0.988 | K77: 一括調達（高知労働局、中国四国農政局高知南国農地整備事業所、自衛隊高知地方協力本部） 予定価格総額 2,025,146円 契約金額総額 2,002,000円
A78: 75 | B78: 九段第2合同庁舎事業系一般廃棄物，産業廃棄物，古紙廃棄物収集運搬及び処分業務一式 | C78: 支出負担行為担当官 東京法務局長 坂本 佳胤 （東京都千代田区九段南1-1-15） | D78: 2023-04-03 | E78: 株式会社ハイシステム 東京都板橋区坂下3-4-1 | F78: 9011401013564 | G78: 一般競争入札 | H78: 919163 | I78: 858528 | J78: =ROUNDDOWN(I78/H78,3) -> 0.934 | K78: 一括調達（東京法務局、麹町税務署、東京国税不服審判所、東京航空局、国土地理院関東地方測量部） 予定価格総額 2,724,255円（税込） 契約金額総額 2,544,542円（税込）
A79: 76 | B79: 令和5年度上半期被収容者用食料品共同調達単価契約（1品目） | C79: 支出負担行為担当官 名古屋刑務所長 中田 学司 （愛知県みよし市ひばりヶ丘1-1） | D79: 2023-04-03 | E79: 株式会社ヤクルト東海 愛知県一宮市千秋町町屋字東鎌田28-1 | F79: 2200001008177 | G79: 一般競争入札 | H79: 2310400 | I79: 860928 | J79: =ROUNDDOWN(I79/H79,3) -> 0.372 | K79: 単価契約 一括調達 （岡崎医療刑務所）
A80: 77 | B80: 宅配便送達業務請負契約 | C80: 支出負担行為担当官 静岡地方法務局長 蔦 啓一郎 （静岡県静岡市葵区追手町9-50） | D80: 2023-04-03 | E80: 佐川急便株式会社 京都府京都市南区上鳥羽角田町68 | F80: 8130001000053 | G80: 一般競争入札 | H80: 1121974 | I80: 876502 | J80: =ROUNDDOWN(I80/H80,3) -> 0.781 | K80: 単価契約
A81: 78 | B81: 令和5年度名古屋刑務所等エレベータ設備等保守契約（名古屋刑務所） | C81: 支出負担行為担当官 名古屋刑務所長 中田 学司 （愛知県みよし市ひばりヶ丘1-1） | D81: 2023-04-03 | E81: ジャパンエレベーターサービス東海株式会社 愛知県名古屋市中区錦2-15-15 | F81: 8180001117173 | G81: 一般競争入札 | H81: 1940400 | I81: 877800 | J81: =ROUNDDOWN(I81/H81,3) -> 0.452
A82: 79 | B82: 自動車賃貸借契約 | C82: 支出負担行為担当官 福岡出入国在留管理局長 市村 信之 （福岡県福岡市中央区舞鶴3-5-25） | D82: 2023-04-03 | E82: 株式会社日産カーレンタルソリューション九州四国営業部 福岡県福岡市博多区博多駅東3-10-15博多駅東アトルビル2階 | F82: - | G82: 一般競争入札 | H82: 1049950 | I82: 879890 | J82: =ROUNDDOWN(I82/H82,3) -> 0.838 | K82: 単価契約
A83: 80 | B83: 宮崎労働局管理9官署で使用する電力供給 | C83: 支出負担行為担当官 宮崎地方法務局長 山内 恵 （宮崎県宮崎市別府町1-1） | D83: 2023-04-03 | E83: RE100電力株式会社 香川県高松市林町2521-5 | F83: 7470001015605 | G83: 一般競争入札 | H83: 1971067 | I83: 887484 | J83: =ROUNDDOWN(I83/H83,3) -> 0.45 | K83: 単価契約 一括調達（【宮崎労働局】） 予定価格総額 22,179,918円 契約金額総額 16,687,555円 再度公告入札
A84: 81 | B84: 伊勢崎地方合同庁舎及び太田地方合同庁舎空調関連設備等保守業務請負契約 | C84: 支出負担行為担当官代理 前橋地方法務局次長 栗原 久典 （群馬県前橋市大手町2-3-1） | D84: 2023-04-03 | E84: 日本ビルシステム株式会社 茨城県水戸市千波町1961-1 | F84: 1050001033299 | G84: 一般競争入札 | H84: 1604916 | I84: 887788 | J84: =ROUNDDOWN(I84/H84,3) -> 0.553 | K84: 一括調達（群馬労働局・自衛隊群馬地方協力本部） 予定価格総額 2,247,300円 契約金額総額 1,243,000円
A85: 82 | B85: 令和5年度四国少年院及び丸亀少女の家一般廃棄物収集運搬処分業務契約 | C85: 支出負担行為担当官 四国少年院長 小山 浩紀 （香川県善通寺市善通寺町2020） | D85: 2023-04-03 | E85: 株式会社パブリック 香川県観音寺市大野原町福田原241-1 | F85: 6470001010846 | G85: 一般競争入札 | H85: 1089176 | I85: 889901 | J85: =ROUNDDOWN(I85/H85,3) -> 0.817 | K85: 単価契約 一括調達（丸亀少女の家）
A86: 83 | B86: 秋田地方法務合同庁舎ほか4庁舎環境衛生等管理業務請負契約 | C86: 支出負担行為担当官 秋田地方検察庁検事正 馬場 浩一 （秋田県秋田市山王7-1-2） | D86: 2023-04-03 | E86: 有限会社メンテックス 秋田県秋田市東通明田3-16 | F86: 4410002004466 | G86: 一般競争入札 | H86: 1631128 | I86: 896651 | J86: =ROUNDDOWN(I86/H86,3) -> 0.549 | K86: 一括調達（東北地方更生保護委員会、秋田地方法務局、東北農政局旭川農業水利事業所、自衛隊秋田地方協力本部、秋田労働局） 予定価格総額 1,697,627円 契約金額総額 990,000円
A87: 84 | B87: エレベーター等保守点検業務請負契約 | C87: 支出負担行為担当官代理 笠松刑務所庶務課長 田中 宏喜 （岐阜県羽島郡笠松町中川町23） | D87: 2023-04-03 | E87: マーキュリーエレベータ株式会社名古屋支社 愛知県名古屋市中村区則武2-29-26 | F87: 1340001001400 | G87: 一般競争入札 | H87: 1172160 | I87: 897600 | J87: =ROUNDDOWN(I87/H87,3) -> 0.765
A88: 85 | B88: 千葉第2地方合同庁舎及び千葉地方検察庁南町分室一般廃棄物収集・運搬・処分業務 | C88: 支出負担行為担当官 千葉地方検察庁検事正 長谷川 保 （千葉県千葉市中央区中央4-11-1） | D88: 2023-04-03 | E88: 大西総業株式会社 千葉県千葉市若葉区源町566-7 | F88: 2040001001181 | G88: 一般競争入札 | H88: 1012926 | I88: 897944 | J88: =ROUNDDOWN(I88/H88,3) -> 0.886 | K88: 一括調達（千葉労働局、千葉労働基準監督署、千葉防衛事務所） 単価契約 予定価格総額 2,156,201円 契約金額総額 1,911,441円
A89: 86 | B89: 令和5年度上半期被収容者用食料品共同調達単価契約（6品目） | C89: 支出負担行為担当官 名古屋刑務所長 中田 学司 （愛知県みよし市ひばりヶ丘1-1） | D89: 2023-04-03 | E89: 有限会社野田安 愛知県刈谷市御幸町5-401 | F89: 2180302018737 | G89: 一般競争入札 | H89: 1649986 | I89: 898277 | J89: =ROUNDDOWN(I89/H89,3) -> 0.544 | K89: 単価契約 一括調達 （岡崎医療刑務所）
A90: 87 | B90: 令和5年度彦根地方合同庁舎駐車場警備業務委託 | C90: 支出負担行為担当官 大津地方法務局長 松尾 力実 （滋賀県大津市京町3-1-1） | D90: 2023-04-03 | E90: 株式会社トムソン 滋賀県大津市逢坂1-12-32 | F90: 8120001097215 | G90: 一般競争入札 | H90: 954511 | I90: 899228 | J90: =ROUNDDOWN(I90/H90,3) -> 0.942 | K90: 一括調達（滋賀労働局） 予定価格総額 4,772,559円 契約金額総額 4,496,140円
A91: 88 | B91: 事務用消耗品等供給契約 | C91: 支出負担行為担当官 松山刑務所長 髙野 洋一 （愛媛県東温市見奈良1243-2） | D91: 2023-04-03 | E91: サラヤ株式会社 大阪府大阪市東住吉区湯里2-2-8 | F91: 5120001009783 | G91: 一般競争入札 | H91: 3211242 | I91: 900086 | J91: =ROUNDDOWN(I91/H91,3) -> 0.28 | K91: 単価契約
A92: 89 | B92: 荷物（書類等）集荷配送業務 | C92: 支出負担行為担当官 岐阜地方検察庁検事正 横田 希代子 （岐阜県岐阜市美江寺町2-8） | D92: 2023-04-03 | E92: 日本郵便株式会社岐阜中央郵便局 岐阜県岐阜市清住町1-3-2 | F92: 1010001112577 | G92: 一般競争入札 | H92: 1289800 | I92: 900765 | J92: =ROUNDDOWN(I92/H92,3) -> 0.698 | K92: 単価契約
A93: 90 | B93: 自家用電気工作物保安管理業務委託契約（1年間） | C93: 支出負担行為担当官代理 徳島刑務所総務部長 河内 睦大 （徳島県徳島市入田町大久200-1） | D93: 2023-04-03 | E93: 一般財団法人四国電気保安協会 徳島県徳島市南田宮1-3-51 | F93: 5470005005298 | G93: 一般競争入札 | H93: 1231560 | I93: 900900 | J93: =ROUNDDOWN(I93/H93,3) -> 0.731
A94: 91 | B94: 冷暖房用燃料供給契約（下北合同庁舎） | C94: 支出負担行為担当官代理 青森地方法務局次長 佐藤 純一 （青森県青森市長島1-3-5） | D94: 2023-04-03 | E94: 株式会社菊池商会 青森県むつ市横迎町2-17-50 | F94: 1420001012348 | G94: 一般競争入札 | H94: - | I94: 908485 | J94: =ROUNDDOWN(I94/H94,3) ->  | K94: 単価契約 同種のほかの契約の予定価格を類推されるおそれがあるため予定価格を公表しない。 一括調達（青森地方検察庁、【仙台国税局】、青森労働局、自衛隊青森地方協力本部） 予定価格総額 - 契約金額総額 2,183,335円
A95: 92 | B95: 令和5年度写真撮影等業務の請負 一式 | C95: 支出負担行為担当官 法務省大臣官房会計課長 民野 健治 （東京都千代田区霞が関1-1-1） | D95: 2023-04-03 | E95: 株式会社サイトウ写真 東京都千代田区永田町1-1-1衆議院内 | F95: 9010001157771 | G95: 一般競争入札 | H95: 1022177 | I95: 908754 | J95: =ROUNDDOWN(I95/H95,3) -> 0.889 | K95: 単価契約
A96: 93 | B96: 旭川刑務所収容棟エレベーター保守点検 | C96: 支出負担行為担当官 旭川刑務所長 福島 利充 （北海道旭川市東鷹栖3-20-620） | D96: 2023-04-03 | E96: 日本エレベーター製造株式会社札幌営業所 北海道札幌市北区北6条6-2-12 | F96: 8010001032926 | G96: 一般競争入札 | H96: 1392278 | I96: 910800 | J96: =ROUNDDOWN(I96/H96,3) -> 0.654
A97: 94 | B97: 須崎第2合同庁舎機械設備等保守点検契約業務 | C97: 支出負担行為担当官代理 高知地方法務局次長 村上 知弘 （高知県高知市栄田町2-2-10） | D97: 2023-04-03 | E97: 株式会社ビル環境衛生管理 高知県高知市桟橋通3-23-10 | F97: 5490001001951 | G97: 一般競争入札 | H97: - | I97: 910996 | J97: =ROUNDDOWN(I97/H97,3) ->  | K97: 同種のほかの契約の予定価格を類推されるおそれがあるため予定価格を公表しない。 一括調達（【高松国税局】、神戸税関、高知地方検察庁） 予定価格総額 -円 契約金額総額 1,980,000円
A98: 95 | B98: レンタカー借上契約 | C98: 支出負担行為担当官代理 名古屋出入国在留管理局次長 山﨑 浩一 （愛知県名古屋市港区正保町5-18） | D98: 2023-04-03 | E98: ジャパンレンタカー株式会社 愛知県名古屋市中区栄1-25-7 | F98: 3180001036915 | G98: 一般競争入札 | H98: 1140980 | I98: 912120 | J98: =ROUNDDOWN(I98/H98,3) -> 0.799 | K98: 単価契約
A99: 96 | B99: 熊本地方法務局阿蘇大津支局及び天草支局エレベーター保守委託 | C99: 支出負担行為担当官 熊本地方法務局長 豊田 英一 （熊本県熊本市中央区大江3-1-53） | D99: 2023-04-03 | E99: 株式会社信和エレベーター 福岡県大牟田市青葉町23-8-102 | F99: 9290001084344 | G99: 一般競争入札 | H99: 1121799 | I99: 916080 | J99: =ROUNDDOWN(I99/H99,3) -> 0.816
A100: 97 | B100: 前橋地方検察庁外4庁におけるAED（5台）の賃貸借 | C100: 支出負担行為担当官 前橋地方検察庁検事正 清野 憲一 （群馬県前橋市大手町3-2-1） | D100: 2023-04-03 | E100: セコム上信越株式会社 新潟県新潟市中央区新光町1-10 | F100: 5110001002806 | G100: 一般競争入札 | H100: 1386000 | I100: 917400 | J100: =ROUNDDOWN(I100/H100,3) -> 0.661
A101: 98 | B101: 千葉地方検察庁健康管理医請負業務 | C101: 支出負担行為担当官 千葉地方検察庁検事正 長谷川 保 （千葉県千葉市中央区中央4-11-1） | D101: 2023-04-03 | E101: 株式会社メディカルリソース 東京都千代田区丸の内1-9-1 | F101: 7010001067790 | G101: 一般競争入札 | H101: 1093400 | I101: 918500 | J101: =ROUNDDOWN(I101/H101,3) -> 0.84 | K101: 単価契約
A102: 99 | B102: 遺体運搬業務委託契約 | C102: 支出負担行為担当官 東日本成人矯正医療センター長 奥村 雄介 （東京都昭島市もくせいの杜2-1-9） | D102: 2023-04-03 | E102: 株式会社マイレ 東京都あきる野市野辺462-17町田ビル1階 | F102: 6013101006264 | G102: 一般競争入札 | H102: 1064800 | I102: 919600 | J102: =ROUNDDOWN(I102/H102,3) -> 0.863 | K102: 単価契約
A103: 100 | B103: 高松法務合同庁舎塵芥処理業務 | C103: 支出負担行為担当官代理 高松法務局総務管理官 中出 幸一 （香川県高松市丸の内1-1） | D103: 2023-04-03 | E103: 有限会社ヨシモト・トレーディングカンパニー 香川県高松市塩江町安原下3-584-1 | F103: 4470002009212 | G103: 一般競争入札 | H103: 1089540 | I103: 919985 | J103: =ROUNDDOWN(I103/H103,3) -> 0.844 | K103: 一括調達（高松高等検察庁、高松地方検察庁、高松矯正管区、四国地方更生保護委員会、高松出入国在留管理局、四国公安調査局）
A104: 101 | B104: 消防用設備保守・点検業務 | C104: 支出負担行為担当官 千葉地方検察庁検事正 長谷川 保 （千葉県千葉市中央区中央4-11-1） | D104: 2023-04-03 | E104: 株式会社清水商会 千葉県千葉市中央区仁戸名町440-8 | F104: 7040001003223 | G104: 一般競争入札 | H104: 2297352 | I104: 923845 | J104: =ROUNDDOWN(I104/H104,3) -> 0.402 | K104: 一括調達（千葉労働局、千葉労働基準監督署、千葉防衛事務所、千葉刑務所、千葉地方法務局） 予定価格総額 3,282,400円 契約金額総額 1,320,000円
A105: 102 | B105: 供託金等警備搬送業務委託契約 | C105: 支出負担行為担当官 鹿児島地方法務局長 林 健児 （鹿児島県鹿児島市鴨池新町1-2） | D105: 2023-04-03 | E105: 株式会社にしけい 福岡県福岡市博多区店屋町5-10 | F105: 4290001009355 | G105: 一般競争入札 | H105: 1458600 | I105: 924000 | J105: =ROUNDDOWN(I105/H105,3) -> 0.633
A106: 103 | B106: 令和5年度荷物（書類等）集荷配送業務委託契約 | C106: 支出負担行為担当官 山口地方検察庁検事正 安藤 浄人 （山口県山口市駅通り1-1-2） | D106: 2023-04-03 | E106: 日本郵便株式会社 山口県山口市中央1-1-1 | F106: 1010001112577 | G106: 一般競争入札 | H106: 1304032 | I106: 927564 | J106: =ROUNDDOWN(I106/H106,3) -> 0.711 | K106: 単価契約
A107: 104 | B107: 医薬品共同調達契約 （医療用医薬品） | C107: 支出負担行為担当官 松山刑務所長 髙野 洋一 （愛媛県東温市見奈良1243-2） | D107: 2023-04-03 | E107: トーヨー商事株式会社 岐阜県羽鳥郡笠松町北及130 | F107: 3200001011295 | G107: 一般競争入札 | H107: 5640490 | I107: 931290 | J107: =ROUNDDOWN(I107/H107,3) -> 0.165 | K107: 単価契約
A108: 105 | B108: 供託金等警備輸送業務委託 | C108: 支出負担行為担当官 鳥取地方法務局長 江原 幸紀 （鳥取県鳥取市東町2-302） | D108: 2023-04-03 | E108: 富士綜合警備保障株式会社 鳥取県鳥取市商栄町405-1 | F108: 5270001000703 | G108: 一般競争入札 | H108: 1398782 | I108: 934560 | J108: =ROUNDDOWN(I108/H108,3) -> 0.668
A109: 106 | B109: 植栽管理業務委託契約 | C109: 支出負担行為担当官代理 名古屋出入国在留管理局次長 山﨑 浩一 （愛知県名古屋市港区正保町5-18） | D109: 2023-04-03 | E109: W1株式会社 愛知県愛西市古瀬町郷内10 | F109: 4180001133364 | G109: 一般競争入札 | H109: 1295800 | I109: 935000 | J109: =ROUNDDOWN(I109/H109,3) -> 0.721
A110: 107 | B110: 令和5年度新潟刑務所等昇降機保守点検業務請負契約 | C110: 支出負担行為担当官代理 新潟刑務所総務部長 猪狩 幸太 （新潟県新潟市江南区山二ツ381-4） | D110: 2023-04-03 | E110: アクア株式会社 新潟県長岡市石動南町42-7 | F110: 4110001025980 | G110: 一般競争入札 | H110: 1577400 | I110: 938058 | J110: =ROUNDDOWN(I110/H110,3) -> 0.594 | K110: 単価契約
A111: 108 | B111: 松山地方合同庁舎エレベーター設備保守点検業務一式 | C111: 支出負担行為担当官 松山地方法務局長 松崎 元彦 （愛媛県松山市宮田町188-6） | D111: 2023-04-03 | E111: 株式会社日立ビルシステム四国支社 香川県高松市寿町1-3-2 | F111: 2010001027031 | G111: 一般競争入札 | H111: 1010464 | I111: 938996 | J111: =ROUNDDOWN(I111/H111,3) -> 0.929 | K111: 一括調達（中国四国農政局、高松出入国在留管理局、四国厚生支局、中国四国管区警察局） 予定価格総額 1,661,946円 契約金額総額 1,544,400円
A112: 109 | B112: 令和5年度上半期分被収容者用食糧供給単価契約（生鮮食）（2品目） | C112: 支出負担行為担当官 名古屋拘置所長 小川 雅之 （愛知県名古屋市東区白壁1-1） | D112: 2023-04-03 | E112: 株式会社肉のヤマト 愛知県西春日井郡豊山町大字青山字金剛24 | F112: 8180001045515 | G112: 一般競争入札 | H112: 1725540 | I112: 939924 | J112: =ROUNDDOWN(I112/H112,3) -> 0.544 | K112: 単価契約
A113: 110 | B113: 松山法務総合庁舎昇降機保守点検業務 | C113: 支出負担行為担当官 松山地方検察庁検事正 山口 敬之 （愛媛県松山市一番町4-4-1） | D113: 2023-04-03 | E113: 鹿島建物総合管理株式会社 東京都新宿区谷本村町2-1 | F113: 2011101047571 | G113: 一般競争入札 | H113: 1342440 | I113: 942480 | J113: =ROUNDDOWN(I113/H113,3) -> 0.702 | K113: 一括調達（松山地方法務局、四国地方更生保護委員会、四国公安調査局）
A114: 111 | B114: 令和5年度血液検査及び細菌検査等業務委託契約 （細菌検査） | C114: 支出負担行為担当官 三重刑務所長 富永 喜敏 （三重県津市修成町16-1） | D114: 2023-04-03 | E114: 株式会社近畿予防医学研究所三重支店 三重県津市あのつ台4-6-6 | F114: 2160001000535 | G114: 一般競争入札 | H114: 1271600 | I114: 943470 | J114: =ROUNDDOWN(I114/H114,3) -> 0.741 | K114: 単価契約
A115: 112 | B115: 被収容者用食糧品供給契約（7品目） | C115: 支出負担行為担当官 市原刑務所長 吉川 和成 （千葉県市原市磯ヶ谷11-1） | D115: 2023-04-03 | E115: 有限会社根本畜産 千葉県市原市飯沼894 | F115: 1040002074673 | G115: 一般競争入札 | H115: 1806008 | I115: 943809 | J115: =ROUNDDOWN(I115/H115,3) -> 0.522 | K115: 単価契約
A116: 113 | B116: 供託金警備輸送業務委託 | C116: 支出負担行為担当官 熊本地方法務局長 豊田 英一 （熊本県熊本市中央区大江3-1-53） | D116: 2023-04-03 | E116: 株式会社にしけい 福岡県福岡市博多区店屋町5-10 | F116: 4290001009355 | G116: 一般競争入札 | H116: 1200540 | I116: 950400 | J116: =ROUNDDOWN(I116/H116,3) -> 0.791
A117: 114 | B117: 昇降機・小荷物用昇降機保守点検委託契約 | C117: 支出負担行為担当官 鳥取刑務所長 和田 剛 （鳥取県鳥取市下味野719） | D117: 2023-04-03 | E117: エレベーターコミュニケーションズ株式会社 東京都品川区南大井6-16-16 | F117: 5010801017897 | G117: 一般競争入札 | H117: 2473548 | I117: 950400 | J117: =ROUNDDOWN(I117/H117,3) -> 0.384
A118: 115 | B118: 荷物運搬請負契約 | C118: 支出負担行為担当官代理 麓刑務所処遇部長 村崎 有 （佐賀県鳥栖市山浦町2635） | D118: 2023-04-03 | E118: 九州西濃運輸株式会社 福岡県福岡市博多区井相田1-1-56 | F118: 9290001052202 | G118: 一般競争入札 | H118: 1045000 | I118: 950400 | J118: =ROUNDDOWN(I118/H118,3) -> 0.909 | K118: 単価契約
A119: 116 | B119: 被収容者給食用食材二か月分（ぶたひき肉409KG他3品目） | C119: 支出負担行為担当官代理 大分刑務所総務部長 飛彈 正俊 （大分県大分市畑中5-4-1） | D119: 2023-04-03 | E119: 株式会社吉野 大分県竹田市直入町大字長湯8195番38 | F119: 7320001009803 | G119: 一般競争入札 | H119: 1823936 | I119: 951163 | J119: =ROUNDDOWN(I119/H119,3) -> 0.521 | K119: 単価契約
A120: 117 | B120: 令和5年度長野法務総合庁舎ほか6庁舎建築物環境衛生管理等業務委託契約 | C120: 支出負担行為担当官 長野地方検察庁検事正 勝山 浩嗣 （長野県長野市大字長野旭町1108） | D120: 2023-04-03 | E120: 株式会社ビルメン信越コントロールズ 長野県長野市大字高田253-2 | F120: 4100001005158 | G120: 一般競争入札 | H120: 1038744 | I120: 954140 | J120: =ROUNDDOWN(I120/H120,3) -> 0.918 | K120: 一括調達（長野地方法務局、関東地方更生保護委員会、関東公安調査局、自衛隊長野地方協力本部） 予定価格総額 1,046,004円 契約金額総額 961,400円
A121: 118 | B121: 静岡地方検察庁ほか3庁舎における空気調和設備定期点検保守業務委託 | C121: 支出負担行為担当官 静岡地方検察庁検事正 伊藤 栄二 （静岡県静岡市葵区追手町9-45） | D121: 2023-04-03 | E121: ヤマザキ・シー・エー株式会社 静岡県浜松市中区上島2-19-20 | F121: 3080401005546 | G121: 一般競争入札 | H121: 1042063 | I121: 957000 | J121: =ROUNDDOWN(I121/H121,3) -> 0.918
A122: 119 | B122: 令和5年度一般廃棄物（可燃性）収集運搬処理業務委託契約 | C122: 支出負担行為担当官代理 前橋刑務所総務部長 池田 潤 （群馬県前橋市南町1-23-7） | D122: 2023-04-03 | E122: 株式会社環境システムズ 群馬県高崎市倉賀野町2465-4 | F122: 8070001006503 | G122: 一般競争入札 | H122: 1306668 | I122: 962808 | J122: =ROUNDDOWN(I122/H122,3) -> 0.736 | K122: 単価契約
A123: 120 | B123: 山形地方合同庁舎ほか2庁舎機械警備業務委託契約 | C123: 支出負担行為担当官 山形地方法務局長 福島 司 （山形県山形市緑町1-5-48） | D123: 2023-04-03 | E123: セコム株式会社 東京都渋谷区神宮前1-5-1 | F123: 6011001035920 | G123: 一般競争入札 | H123: 1151015 | I123: 967240 | J123: =ROUNDDOWN(I123/H123,3) -> 0.84 | K123: 国庫債務負担行為 一括調達（山形行政監視行政相談センター、東京税関酒田税関支署山形出張所、山形労働基準監督署、庄内労働基準監督署、村山労働基準監督署、自衛隊山形地方協力本部、自衛隊山形地方協力本部鶴岡出張所） 予定価格総額 2,126,863円 契約金額総額 1,787,280円
A124: 121 | B124: 法務省民事局登記情報センター用空調機保守管理業務の請負 一式 | C124: 支出負担行為担当官 法務省大臣官房会計課長 民野 健治 （東京都千代田区霞が関1-1-1） | D124: 2023-04-03 | E124: 株式会社典美 東京都八王子市川口町2098-5 | F124: 3010101012411 | G124: 一般競争入札 | H124: 1339745 | I124: 968000 | J124: =ROUNDDOWN(I124/H124,3) -> 0.722
A125: 122 | B125: 旭川法務総合庁舎衛生的環境維持管理業務請負 | C125: 支出負担行為担当官 旭川地方検察庁検事正 山内 由光 （北海道旭川市花咲町4） | D125: 2023-04-03 | E125: 環境衛生工業株式会社 北海道旭川市8-9左6 | F125: 8450001000780 | G125: 一般競争入札 | H125: 1030700 | I125: 968000 | J125: =ROUNDDOWN(I125/H125,3) -> 0.939 | K125: 一括調達（北海道地方更生保護委員会）
A126: 123 | B126: 令和5年度盛岡少年刑務所及び盛岡少年院において使用するコピー用紙等消耗品供給契約 | C126: 支出負担行為担当官 盛岡少年院長 森 浩彰 （岩手県盛岡市月が丘2-15-1） | D126: 2023-04-03 | E126: 株式会社橋市 岩手県盛岡市盛岡駅前北通7-17 | F126: 2400001001293 | G126: 一般競争入札 | H126: 1767884 | I126: 972144 | J126: =ROUNDDOWN(I126/H126,3) -> 0.549 | K126: 一括調達（盛岡少年刑務所）
A127: 124 | B127: 令和5年度那覇第1地方合同庁舎共用部分等除草剪定業務請負契約 | C127: 支出負担行為担当官 那覇地方検察庁検事正 内藤 惣一郎 （沖縄県那覇市樋川1-15-15） | D127: 2023-04-03 | E127: 株式会社エイト 東京都八王子市明神町3-20-5エイトビル | F127: 6010101000512 | G127: 一般競争入札 | H127: 1113597 | I127: 973284 | J127: =ROUNDDOWN(I127/H127,3) -> 0.874 | K127: 一括調達（人事院、那覇地方法務局、九州地方更生保護委員会、福岡出入国在留管理局、九州公安調査局、九州厚生局沖縄分室、沖縄気象台、国土地理院沖縄支所、沖縄奄美自然環境事務所） 予定価格総額 2,391,400円 契約金額総額 2,090,000円
A128: 125 | B128: 仙台法務局塩釜支局庁舎ほか5庁舎自家用電気工作物保安管理業務契約 | C128: 支出負担担当官代理 仙台法務局総務管理官 小池 正大 （宮城県仙台市青葉区春日町7-25） | D128: 2023-04-03 | E128: 株式会社トーショウビルサービス 北海道函館市中道1-1-12 | F128: 2440001001356 | G128: 一般競争入札 | H128: 1111750 | I128: 976236 | J128: =ROUNDDOWN(I128/H128,3) -> 0.878 | K128: 一括調達（仙台法務局、仙台地方検察庁、自衛隊宮城地方協力本部、名取市） 予定価格総額 1,337,846円 契約金額総額 1,174,800円
A129: 126 | B129: 津法務総合庁舎ほか2庁舎ビル管理法等に基づく諸業務委託契約 | C129: 支出負担行為担当官 津地方検察庁検事正 菊池 和史 （三重県津市中央3-12） | D129: 2023-04-03 | E129: 株式会社ニッカン 愛知県名古屋市西区栄生2-22-5 | F129: 1180001026612 | G129: 一般競争入札 | H129: 1225367 | I129: 979000 | J129: =ROUNDDOWN(I129/H129,3) -> 0.798 | K129: 一括調達（津地方法務局、中部地方更生保護委員会）
A130: 127 | B130: GNSSリアルタイム補正データ配信サービス契約 | C130: 支出負担担当官代理 仙台法務局総務管理官 小池 正大 （宮城県仙台市青葉区春日町7-25） | D130: 2023-04-03 | E130: 日本GPSデータサービス 東京都品川区南大井6-26-3 | F130: 2010701023825 | G130: 一般競争入札 | H130: 1188000 | I130: 990000 | J130: =ROUNDDOWN(I130/H130,3) -> 0.833
A131: 128 | B131: 供託金等警備輸送業務委託契約 | C131: 支出負担行為担当官 旭川地方法務局長 羽澤 政明 （北海道旭川市宮前1-3-3-15） | D131: 2023-04-03 | E131: NXキャッシュ・ロジスティクス株式会社 東京都千代田区神田和泉町2 | F131: 5010001223230 | G131: 一般競争入札 | H131: 1018908 | I131: 990000 | J131: =ROUNDDOWN(I131/H131,3) -> 0.971
A132: 129 | B132: 福岡出入国在留管理局文書等廃棄作業請負契約 | C132: 支出負担行為担当官 福岡出入国在留管理局長 市村 信之 （福岡県福岡市中央区舞鶴3-5-25） | D132: 2023-04-03 | E132: 株式会社紙資源 福岡県福岡市東区箱崎ふ頭4-1-37 | F132: 9290001002826 | G132: 一般競争入札 | H132: 1216319 | I132: 990027 | J132: =ROUNDDOWN(I132/H132,3) -> 0.813 | K132: 単価契約
A133: 130 | B133: フォークリフト運転科職業訓練委託契約 | C133: 支出負担行為担当官 月形刑務所長 林 文彦 （北海道樺戸郡月形町1011） | D133: 2023-04-03 | E133: 株式会社PEO建機教習センタ 東京都千代田区丸の内1-8-3 | F133: 4010501032909 | G133: 一般競争入札 | H133: 1018481 | I133: 992006 | J133: =ROUNDDOWN(I133/H133,3) -> 0.974 | K133: 単価契約
A134: 131 | B134: 令和5年度名古屋拘置所受変電設備年次点検業務委託契約 | C134: 支出負担行為担当官 名古屋拘置所長 小川 雅之 （愛知県名古屋市東区白壁1-1） | D134: 2023-04-03 | E134: 一般財団法人中部電気保安協会名古屋支店 愛知県名古屋市天白区井口1-606 | F134: 2180005014521 | G134: 一般競争入札 | H134: 1139600 | I134: 992200 | J134: =ROUNDDOWN(I134/H134,3) -> 0.87
A135: 132 | B135: 令和5年度鹿児島地方検察庁加治木支部ほか2庁舎清掃及びねずみ・昆虫等の防除業務委託契約 | C135: 支出負担行為担当官 鹿児島地方検察庁検事正 古賀 栄美 （鹿児島県鹿児島市山下町13-10） | D135: 2023-04-03 | E135: 大成ビルサービス株式会社 鹿児島県鹿児島市樋之口町11-22 | F135: 9340001002531 | G135: 一般競争入札 | H135: 1500052 | I135: 999900 | J135: =ROUNDDOWN(I135/H135,3) -> 0.666
A136: 133 | B136: 庁舎等清掃業務に係る請負契約 | C136: 支出負担行為担当官代理 笠松刑務所庶務課長 田中 宏喜 （岐阜県羽島郡笠松町中川町23） | D136: 2023-04-03 | E136: ハヤックス株式会社 岐阜県岐阜市長森細畑427-4 | F136: 5200001004272 | G136: 一般競争入札 | H136: 1166880 | I136: 999900 | J136: =ROUNDDOWN(I136/H136,3) -> 0.856
A137: 134 | B137: 令和5年度名古屋拘置所自家発電年次点検業務委託契約 | C137: 支出負担行為担当官 名古屋拘置所長 小川 雅之 （愛知県名古屋市東区白壁1-1） | D137: 2023-04-03 | E137: Safety Management株式会社 愛知県名古屋市中村区牛田通4-13 | F137: 3180001107518 | G137: 一般競争入札 | H137: 1371700 | I137: 1001000 | J137: =ROUNDDOWN(I137/H137,3) -> 0.729
A138: 135 | B138: 供託金等警備輸送業務委託契約 | C138: 支出負担行為担当官代理 新潟地方法務局次長 二葉 秀平 （新潟県新潟市中央区西大畑町5191） | D138: 2023-04-03 | E138: NXキャッシュ・ロジスティクス株式会社 東京都千代田区神田和泉町2 | F138: 5010001223230 | G138: 一般競争入札 | H138: 1079842 | I138: 1003200 | J138: =ROUNDDOWN(I138/H138,3) -> 0.929
A139: 136 | B139: 自家用電気工作物保安管理業務委託契約 | C139: 支出負担行為担当官代理 喜連川社会復帰促進センター総務部長 松谷 憲一 （栃木県さくら市喜連川5547） | D139: 2023-04-03 | E139: 株式会社電気管理協会 茨城県水戸市元石川町822-1 | F139: 6050001005764 | G139: 一般競争入札 | H139: 1122000 | I139: 1003200 | J139: =ROUNDDOWN(I139/H139,3) -> 0.894
A140: 137 | B140: 千葉地方検察庁自動車賃貸借（レンタカー） | C140: 支出負担行為担当官 千葉地方検察庁検事正 長谷川 保 （千葉県千葉市中央区中央4-11-1） | D140: 2023-04-03 | E140: ニッポンレンタカー東関東株式会社 千葉県柏市南柏1-13-11 | F140: 6040001066221 | G140: 一般競争入札 | H140: 1154320 | I140: 1004630 | J140: =ROUNDDOWN(I140/H140,3) -> 0.87 | K140: 単価契約
A141: 138 | B141: 令和5年度長野・上田・松本法務総合庁舎に係る自家用電気工作物保安管理業務委託契約 | C141: 支出負担行為担当官 長野地方検察庁検事正 勝山 浩嗣 （長野県長野市大字長野旭町1108） | D141: 2023-04-03 | E141: 一般財団法人中部電気保安協会長野営業所 長野県長野市桐原1-5-8 | F141: 2180005014521 | G141: 一般競争入札 | H141: 1020380 | I141: 1009380 | J141: =ROUNDDOWN(I141/H141,3) -> 0.989 | K141: 一括調達（長野地方法務局、関東地方更生保護委員会、関東公安調査局、自衛隊長野地方協力本部） 予定価格総額 1,061,720円 契約金額総額 1,050,720円
A142: 139 | B142: 小荷物専用昇降機（4台）保守契約 | C142: 支出負担行為担当官 北九州医療刑務所長 迎 伸彦 （福岡県北九州市小倉南区葉山町1-1-1） | D142: 2023-04-03 | E142: 日本エレベーター製造株式会社 東京都千代田区岩本町1-10-3 | F142: 8010001032926 | G142: 一般競争入札 | H142: 1042800 | I142: 1009800 | J142: =ROUNDDOWN(I142/H142,3) -> 0.968
A143: 140 | B143: 輪島地方合同庁舎機械警備業務委託契約 | C143: 支出負担行為担当官 金沢地方法務局長 石田 正信 （石川県金沢市新神田4-3-10） | D143: 2023-04-03 | E143: セコム北陸株式会社 石川県金沢市香林坊2-4-30香林坊ラモーダ | F143: 8220001003674 | G143: 一般競争入札 | H143: 1215849 | I143: 1010420 | J143: =ROUNDDOWN(I143/H143,3) -> 0.831 | K143: 国庫債務負担行為 一括調達（石川労働局、北陸地方整備局） 予定価格総額 2,446,376円 契約金額総額 2,032,800円
A144: 141 | B144: 令和5年度第1四半期給食用食材（冷凍食品等）供給契約 | C144: 支出負担行為担当官代理 府中刑務所教育部長 水上 太平 （東京都府中市晴見町4-10） | D144: 2023-04-03 | E144: 有限会社仙台屋商店 東京都府中市片町1-12-5 | F144: 7012402001510 | G144: 一般競争入札 | H144: 1725840 | I144: 1015000 | J144: =ROUNDDOWN(I144/H144,3) -> 0.588 | K144: 単価契約
A145: 142 | B145: 令和5年度広島法務局三次支局空調設備保守点検業務委託契約 | C145: 支出負担行為担当官 広島法務局長 篠原 辰夫 （広島県広島市中区上八丁堀6-30） | D145: 2023-04-03 | E145: 山陽空調工業株式会社 広島県広島市南区大須賀町19-13 | F145: 9240001003705 | G145: 一般競争入札 | H145: 1207800 | I145: 1017500 | J145: =ROUNDDOWN(I145/H145,3) -> 0.842
A146: 143 | B146: 令和5年度上半期京都地区被収容者用食材購入（副食品）（1品目） | C146: 支出負担行為担当官代理 京都刑務所処遇部長 渡邊 真也 （京都府京都市山科区東野井ノ上町20） | D146: 2023-04-03 | E146: 京滋ヤクルト販売株式会社 京都府京都市南区久世築山町250 | F146: 6130001010509 | G146: 一般競争入札 | H146: 2289500 | I146: 1019430 | J146: =ROUNDDOWN(I146/H146,3) -> 0.445 | K146: 単価契約 一括調達（京都拘置所、京都医療少年院）
A147: 144 | B147: 清掃業務請負契約（橋本地方合同庁舎および御坊法務総合庁舎） | C147: 支出負担行為担当官 和歌山地方法務局長 夏見 聡 （和歌山県和歌山市二番丁3） | D147: 2023-04-03 | E147: キョウワプロテック株式会社 福島県福島市五月町3-20 | F147: 3380001000405 | G147: 一般競争入札 | H147: 1134383 | I147: 1024558 | J147: =ROUNDDOWN(I147/H147,3) -> 0.903 | K147: 一括調達（和歌山労働局、和歌山地方検察庁、自衛隊和歌山協力本部） 予定価格総額1,673,625円 契約金額総額1,511,400円
A148: 145 | B148: 一般貨物自動車運送業務契約 | C148: 支出負担行為担当官代理 前橋地方法務局次長 栗原 久典 （群馬県前橋市大手町2-3-1） | D148: 2023-04-03 | E148: 日本郵便株式会社 東京都千代田区大手町2-3-1 | F148: 1010001112577 | G148: 一般競争入札 | H148: 1188000 | I148: 1025299 | J148: =ROUNDDOWN(I148/H148,3) -> 0.863 | K148: 単価契約
A149: 146 | B149: 京都法務合同庁舎トイレ用衛生機器賃貸借及び保守業務委託契約 | C149: 支出負担行為担当官 京都地方検察庁検事正 宇川 春彦 （京都府京都市上京区新町通下長者町下る両御霊町82） | D149: 2023-04-03 | E149: 日本カルミック株式会社 東京都千代田区九段南1-5-10 | F149: 8010001032991 | G149: 一般競争入札 | H149: 1055151 | I149: 1030920 | J149: =ROUNDDOWN(I149/H149,3) -> 0.977 | K149: 一括調達（近畿公安調査局）
A150: 147 | B150: 令和5年度東京労働局海岸庁舎外11施設機械警備保安業務委託 | C150: 支出負担行為担当官 東京法務局長 坂本 佳胤 （東京都千代田区九段南1-1-15） | D150: 2023-04-03 | E150: 綜合警備保障株式会社 東京都港区元赤坂1-6-6 | F150: 3010401016070 | G150: 一般競争入札 | H150: 1136704 | I150: 1031787 | J150: =ROUNDDOWN(I150/H150,3) -> 0.907 | K150: 一括調達（【東京労働局】、東京地方検察庁） 予定価格総額 9,003,300円（税抜） 契約金額総額 8,172,000円（税抜）
A151: 148 | B151: 令和5年度九段合同庁舎植栽維持管理業務一式 | C151: 支出負担行為担当官 東京地方検察庁検事正 久木元 伸 （東京都千代田区霞が関1-1-1） | D151: 2023-04-03 | E151: 有限会社橫溝造園 東京都八王子市下恩方町2066-12 | F151: 1010102010746 | G151: 一般競争入札 | H151: 1160304 | I151: 1037762 | J151: =ROUNDDOWN(I151/H151,3) -> 0.894 | K151: 一括調達（関東公安調査局） 予定価格総額 2,115,414円 契約金額総額 1,892,000円
A152: 149 | B152: 産業廃棄物収集運搬及び処理（木くず50トン） | C152: 支出負担行為担当官代理 大分刑務所総務部長 飛彈 正俊 （大分県大分市畑中5-4-1） | D152: 2023-04-03 | E152: 有限会社瀬戸商店 大分県大分市大字海原字見休800-2 | F152: 7320002003854 | G152: 一般競争入札 | H152: 1600000 | I152: 1038400 | J152: =ROUNDDOWN(I152/H152,3) -> 0.649 | K152: 単価契約
A153: 150 | B153: 令和5年度那覇第1地方合同庁舎環境衛生管理業務請負契約 | C153: 支出負担行為担当官 那覇地方検察庁検事正 内藤 惣一郎 （沖縄県那覇市樋川1-15-15） | D153: 2023-04-03 | E153: 株式会社沖縄ゼネラルサービス 沖縄県宜野湾市真志喜1-7-2 | F153: 7360001008611 | G153: 一般競争入札 | H153: 1319195 | I153: 1038900 | J153: =ROUNDDOWN(I153/H153,3) -> 0.787 | K153: 一括調達（人事院、那覇地方法務局、九州地方更生保護委員会、福岡出入国在留管理局、九州公安調査局、九州厚生局沖縄分室、沖縄気象台、国土地理院沖縄支所、沖縄奄美自然環境事務所） 予定価格総額 2,095,170円 契約金額総額 1,650,000円
A154: 151 | B154: 荷物運搬請負契約 | C154: 支出負担行為担当官代理 麓刑務所処遇部長 村崎 有 （佐賀県鳥栖市山浦町2635） | D154: 2023-04-03 | E154: 岡山県貨物運送株式会社 岡山県岡山市北区清心町4-31 | F154: 4260001001001 | G154: 一般競争入札 | H154: 1107810 | I154: 1039500 | J154: =ROUNDDOWN(I154/H154,3) -> 0.938 | K154: 単価契約
A155: 152 | B155: 上半期翻訳・通訳派遣（3科国語 タイ語、ベトナム語、韓国語） | C155: 支出負担行為担当官 和歌山刑務所長 浦方 亀世 （和歌山県和歌山市加納383） | D155: 2023-04-03 | E155: 株式会社アレスコ 大阪府大阪市淀川区十八条1-4-28-406 | F155: 5120001201869 | G155: 一般競争入札 | H155: 2191164 | I155: 1039720 | J155: =ROUNDDOWN(I155/H155,3) -> 0.474 | K155: 単価契約
A156: 153 | B156: 輪島地方合同庁舎設備機器等の保守管理及び点検等業務委託 | C156: 支出負担行為担当官 金沢地方法務局長 石田 正信 （石川県金沢市新神田4-3-10） | D156: 2023-04-03 | E156: 信越ビル美装株式会社 長野県長野市大字高田654-1 | F156: 2100001001274 | G156: 一般競争入札 | H156: 1179826 | I156: 1045219 | J156: =ROUNDDOWN(I156/H156,3) -> 0.885 | K156: 一括調達（石川労働局、北陸地方整備局） 予定価格総額 2,633,541円 契約金額総額 2,333,100円
A157: 154 | B157: 輪島地方合同庁舎清掃等業務委託 | C157: 支出負担行為担当官 金沢地方法務局長 石田 正信 （石川県金沢市新神田4-3-10） | D157: 2023-04-03 | E157: 有限会社グリター企画 石川県金沢市若宮町ホ4-4 | F157: 3220002002366 | G157: 一般競争入札 | H157: 1060275 | I157: 1050236 | J157: =ROUNDDOWN(I157/H157,3) -> 0.99 | K157: 一括調達（石川労働局、北陸地方整備局） 予定価格総額 2,387,470円 契約金額総額 2,365,000円
A158: 155 | B158: 令和5年度物品運送契約 | C158: 支出負担行為担当官 宇都宮地方法務局長 関口 正木 （栃木県宇都宮市小幡2-1-11） | D158: 2023-04-03 | E158: 日本郵便株式会社 東京都千代田区大手町2-3-1 | F158: 1010001112577 | G158: 一般競争入札 | H158: 1756557 | I158: 1052821 | J158: =ROUNDDOWN(I158/H158,3) -> 0.599 | K158: 単価契約
A159: 156 | B159: 供託金等警備輸送業務委託契約 | C159: 支出負担行為担当官代理 前橋地方法務局次長 栗原 久典 （群馬県前橋市大手町2-3-1） | D159: 2023-04-03 | E159: 株式会社シムックス 群馬県太田市植木野町300-1 | F159: 4070001019442 | G159: 一般競争入札 | H159: 1346039 | I159: 1056000 | J159: =ROUNDDOWN(I159/H159,3) -> 0.784
A160: 157 | B160: 松江地方法務局本局機械警備業務委託契約 | C160: 支出負担行為担当官 松江地方法務局長 西岡 典子 （島根県松江市東朝日町192-3） | D160: 2023-04-03 | E160: ALSOK山陰株式会社 島根県松江市朝日町477-17 | F160: 8280001002308 | G160: 一般競争入札 | H160: 1056000 | I160: 1056000 | J160: =ROUNDDOWN(I160/H160,3) -> 1
A161: 158 | B161: 令和5年度供託金警備輸送業務委託契約 | C161: 支出負担行為担当官 松江地方法務局長 西岡 典子 （島根県松江市東朝日町192-3） | D161: 2023-04-03 | E161: NXキャッシュ・ロジスティクス株式会社 東京都千代田区神田和泉町2 | F161: 5010001223230 | G161: 一般競争入札 | H161: 1056000 | I161: 1056000 | J161: =ROUNDDOWN(I161/H161,3) -> 1
A162: 159 | B162: 供託金等警備搬送業務委託 | C162: 支出負担行為担当官 那覇地方法務局長 野見山 弘幸 （沖縄県那覇市樋川1-15-15） | D162: 2023-04-03 | E162: NXキャッシュ・ロジスティクス株式会社 東京都千代田区神田泉町2 | F162: 5010001223230 | G162: 一般競争入札 | H162: 1710568 | I162: 1056000 | J162: =ROUNDDOWN(I162/H162,3) -> 0.617
A163: 160 | B163: 宜野湾出張所庁舎の機械警備業務委託 | C163: 支出負担行為担当官 那覇地方法務局長 野見山 弘幸 （沖縄県那覇市樋川1-15-15） | D163: 2023-04-03 | E163: セコム琉球株式会社 沖縄県那覇市久茂地1-7-1 | F163: 9360001001192 | G163: 一般競争入札 | H163: 2039934 | I163: 1056000 | J163: =ROUNDDOWN(I163/H163,3) -> 0.517 | K163: 国庫債務負担行為
A164: 161 | B164: 法務総合研究所仙台支所機械警備業務委託 | C164: 支出負担行為担当官 仙台高等検察庁検事長 辻 裕教 （宮城県仙台市青葉区片平1-3-1） | D164: 2023-04-03 | E164: セコム株式会社 東京都渋谷区神宮前1-5-1 | F164: 6011001035920 | G164: 一般競争入札 | H164: 1056000 | I164: 1056000 | J164: =ROUNDDOWN(I164/H164,3) -> 1 | K164: 国庫債務負担行為
A165: 162 | B165: 歳入金警備搬送等業務の委託 | C165: 支出負担行為担当官 仙台地方検察庁検事正 飯島 泰 （宮城県仙台市青葉区片平1-3-1） | D165: 2023-04-03 | E165: NXキャッシュ・ロジスティクス株式会社東北支店 宮城県仙台市若林区卸町2-1-11 | F165: 5010001223230 | G165: 一般競争入札 | H165: 1211100 | I165: 1056000 | J165: =ROUNDDOWN(I165/H165,3) -> 0.871
A166: 163 | B166: 令和5年度産業廃棄物（木くず等）収集運搬処理業務委託契約 | C166: 支出負担行為担当官代理 前橋刑務所総務部長 池田 潤 （群馬県前橋市南町1-23-7） | D166: 2023-04-03 | E166: 株式会社環境システムズ 群馬県高崎市倉賀野町2465-4 | F166: 8070001006503 | G166: 一般競争入札 | H166: 1144000 | I166: 1056000 | J166: =ROUNDDOWN(I166/H166,3) -> 0.923 | K166: 単価契約
A167: 164 | B167: 産業廃棄物（木くず）収集運搬処分 | C167: 支出負担行為担当官 福岡刑務所長 林 克士 （福岡県糟屋郡宇美町障子岳南6-1-1） | D167: 2023-04-03 | E167: 株式会社西興 福岡県福岡市博多区奈良屋町14-3 | F167: 7290001015524 | G167: 一般競争入札 | H167: 1782000 | I167: 1056000 | J167: =ROUNDDOWN(I167/H167,3) -> 0.592 | K167: 単価契約 予定数量60,000㎏
A168: 165 | B168: 令和5年度供託金等警備輸送業務委託契約 | C168: 支出負担行為担当官 宇都宮地方法務局長 関口 正木 （栃木県宇都宮市小幡2-1-11） | D168: 2023-04-03 | E168: 北関東綜合警備保障株式会社 栃木県宇都宮市不動前1-3-14 | F168: 9060001001355 | G168: 一般競争入札 | H168: 1059960 | I168: 1059960 | J168: =ROUNDDOWN(I168/H168,3) -> 1
A169: 166 | B169: 令和5年度上半期京都地区被収容者用食材購入（副食品）（2品目） | C169: 支出負担行為担当官代理 京都刑務所処遇部長 渡邊 真也 （京都府京都市山科区東野井ノ上町20） | D169: 2023-04-03 | E169: 北川雑穀株式会社 滋賀県大津市坂ノ辻町6-24 | F169: 4160001000541 | G169: 一般競争入札 | H169: 2099520 | I169: 1062270 | J169: =ROUNDDOWN(I169/H169,3) -> 0.505 | K169: 単価契約 一括調達（京都拘置所、京都医療少年院）
A170: 167 | B170: 令和5年度キャノン製複写機保守契約 | C170: 支出負担行為担当官 宇都宮地方法務局長 関口 正木 （栃木県宇都宮市小幡2-1-11） | D170: 2023-04-03 | E170: 関東マルワ産業株式会社 栃木県宇都宮市平出工業団地38-38 | F170: 5060001001169 | G170: 一般競争入札 | H170: 1063477 | I170: 1063477 | J170: =ROUNDDOWN(I170/H170,3) -> 1 | K170: 単価契約
A171: 168 | B171: 自家用電気工作物保安管理業務委託契約 | C171: 支出負担行為担当官 鹿児島地方法務局長 林 健児 （鹿児島県鹿児島市鴨池新町1-2） | D171: 2023-04-03 | E171: 九州電気管理協同組合 福岡県福岡市博多区博多駅南1-8-12 | F171: 1290005003506 | G171: 一般競争入札 | H171: 1344303 | I171: 1063518 | J171: =ROUNDDOWN(I171/H171,3) -> 0.791 | K171: 一括調達（鹿児島地方検察庁、鹿児島労働局、自衛隊鹿児島協力本部、熊本国税局） 予定価格総額 1,694,188円 契約金額総額 1,340,320円
A172: 169 | B172: 白衣等クリーニング業務委託 | C172: 支出負担行為担当官 東京拘置所長 平良 敦志 （東京都葛飾区小菅1-35-1） | D172: 2023-04-03 | E172: アースサポート株式会社 東京都渋谷区本町1-4-14 | F172: 2011001027780 | G172: 一般競争入札 | H172: 1238292 | I172: 1068724 | J172: =ROUNDDOWN(I172/H172,3) -> 0.863 | K172: 単価契約
A173: 170 | B173: 郵便物の運送業務委託契約 | C173: 支出負担行為担当官 東京出入国在留管理局長 宮尾 芳彰 （東京都港区港南5-5-30） | D173: 2023-04-03 | E173: SBSリコーロジスティクス株式会社 東京都大田区京浜島1-2-6 | F173: 7010801012582 | G173: 一般競争入札 | H173: 1336500 | I173: 1069200 | J173: =ROUNDDOWN(I173/H173,3) -> 0.8
A174: 171 | B174: 令和5年度松本少年刑務所コニカミノルタ製複合型複写機保守契約（3台） | C174: 支出負担行為担当官代理 松本少年刑務所処遇首席 山本 拓矢 （長野県松本市桐3-9-4） | D174: 2023-04-03 | E174: コニカミノルタジャパン株式会社 東京都港区芝浦1-1-1 | F174: 9013401005070 | G174: 一般競争入札 | H174: 1072447 | I174: 1072447 | J174: =ROUNDDOWN(I174/H174,3) -> 1 | K174: 単価契約 カラー6.6円／枚他
A175: 172 | B175: 令和5年度武蔵野区検察庁日常清掃業務一式 | C175: 支出負担行為担当官 東京地方検察庁検事正 久木元 伸 （東京都千代田区霞が関1-1-1） | D175: 2023-04-03 | E175: 株式会社SxJAPAN 埼玉県新座市野火止7-10-55 | F175: 8030001140297 | G175: 一般競争入札 | H175: 1167370 | I175: 1078000 | J175: =ROUNDDOWN(I175/H175,3) -> 0.923
A176: 173 | B176: 前橋法務総合庁舎等樹木剪定等業務委託 | C176: 支出負担行為担当官 前橋地方検察庁検事正 清野 憲一 （群馬県前橋市大手町3-2-1） | D176: 2023-04-03 | E176: 有限会社宮内造園土木 群馬県前橋市金丸町229 | F176: 1070002005254 | G176: 一般競争入札 | H176: 1682385 | I176: 1078000 | J176: =ROUNDDOWN(I176/H176,3) -> 0.64 | K176: 一括調達（関東地方更生保護委員会、前橋刑務所、東京出入国在留管理局、関東公安調査局）
A177: 174 | B177: 一般廃棄物収集運搬処分業務委託（不燃ごみ） | C177: 支出負担行為担当官 旭川刑務所長 福島 利充 （北海道旭川市東鷹栖3-20-620） | D177: 2023-04-03 | E177: 旭星クリーン株式会社 北海道旭川市住吉4-2-8-13 | F177: 6450001000997 | G177: 一般競争入札 | H177: 1983520 | I177: 1078000 | J177: =ROUNDDOWN(I177/H177,3) -> 0.543 | K177: 単価契約
A178: 175 | B178: 令和5年度盛岡少年刑務所及び盛岡少年院において使用するコピー用紙等消耗品供給契約 | C178: 支出負担行為担当官 盛岡少年院長 森 浩彰 （岩手県盛岡市月が丘2-15-1） | D178: 2023-04-03 | E178: 有限会社森八商店 岩手県盛岡市紺屋町4-33 | F178: 8400002003457 | G178: 一般競争入札 | H178: 1965664 | I178: 1078360 | J178: =ROUNDDOWN(I178/H178,3) -> 0.548 | K178: 一括調達（盛岡少年刑務所） 単価契約
A179: 176 | B179: 令和5年度福岡少年鑑別所デジタル複合機保守請負契約 | C179: 支出負担行為担当官 福岡少年鑑別所長 村中 隆 （福岡県福岡市南区若久6-75-2） | D179: 2023-04-03 | E179: 株式会社かがし屋福岡本社 福岡県福岡市博多区東光2-13-3 | F179: 8290001055148 | G179: 一般競争入札 | H179: 1174596 | I179: 1080720 | J179: =ROUNDDOWN(I179/H179,3) -> 0.92 | K179: 単価契約
A180: 177 | B180: 供託金等警備輸送業務委託契約 | C180: 支出負担行為担当官代理 函館地方法務局次長 森山 昌弘 （北海道函館市新川町25-18） | D180: 2023-04-03 | E180: NXキャッシュ・ロジスティクス株式会社北海道支店 北海道札幌市中央区北二条東11-23-21 | F180: 5010001223230 | G180: 一般競争入札 | H180: 1492342 | I180: 1082400 | J180: =ROUNDDOWN(I180/H180,3) -> 0.725
A181: 178 | B181: 益田地方合同庁舎機械警備業務委託契約 | C181: 支出負担行為担当官 松江地方法務局長 西岡 典子 （島根県松江市東朝日町192-3） | D181: 2023-04-03 | E181: ALSOK山陰株式会社 島根県松江市朝日町477-17 | F181: 8280001002308 | G181: 一般競争入札 | H181: 1089000 | I181: 1089000 | J181: =ROUNDDOWN(I181/H181,3) -> 1 | K181: 国庫債務負担行為 一括調達（島根労働局） 予定価格総額 3,267,000円 契約金額総額 3,267,000円
A182: 179 | B182: 令和5年度第1四半期給食用食材（冷凍食品等）供給契約 | C182: 支出負担行為担当官代理 府中刑務所教育部長 水上 太平 （東京都府中市晴見町4-10） | D182: 2023-04-03 | E182: 有限会社田口魚店 東京都立川市高松町1-29-5 | F182: 1012802006494 | G182: 一般競争入札 | H182: 1749600 | I182: 1093500 | J182: =ROUNDDOWN(I182/H182,3) -> 0.625 | K182: 単価契約
A183: 180 | B183: 札幌第3合同庁舎及び札幌家庭裁判所芝生及び樹木保守管理業務 | C183: 支出負担行為担当官 札幌高等検察庁検事長 神村 昌通 （北海道札幌市中央区大通西12） | D183: 2023-04-03 | E183: 株式会社栄商 北海道札幌市東区北47条東1-1-10 | F183: 3430001002148 | G183: 一般競争入札 | H183: 1261350 | I183: 1093553 | J183: =ROUNDDOWN(I183/H183,3) -> 0.866 | K183: 一括調達（人事院北海道事務局、公正取引委員会事務総局、北海道防衛局、北海道地方更生保護委員会、札幌出入国在留管理局、北海道公安調査局、札幌家庭裁判所） 予定価格総額 2,398,000円 契約金額総額 2,079,000円
A184: 181 | B184: 令和5年度自家用電気工作物保安管理業務委託契約 | C184: 支出負担行為担当官代理 甲府刑務所庶務課長 塚田 泰人 （山梨県甲府市堀之内町500） | D184: 2023-04-03 | E184: 一般財団法人関東電気保安協会 東京都港区芝浦4-13-23 | F184: 8013305001704 | G184: 一般競争入札 | H184: 1094082 | I184: 1094082 | J184: =ROUNDDOWN(I184/H184,3) -> 1
A185: 182 | B185: 令和5年度横浜刑務所エレベーター（5台）及び小荷物昇降機（19台）保守業務委託契約 | C185: 支出負担行為担当官代理 横浜刑務所総務部長 岡本 智成 （神奈川県横浜市港南区港南4-2-2） | D185: 2023-04-03 | E185: ジャパンエレベーターサービス神奈川株式会社 神奈川県横浜市神奈川区鶴屋町3-33-8 | F185: 9020001109160 | G185: 一般競争入札 | H185: 1159557 | I185: 1096260 | J185: =ROUNDDOWN(I185/H185,3) -> 0.945
A186: 183 | B186: 長野地方法務局分室庁舎警備業務委託契約 | C186: 支出負担行為担当官代理 長野地方法務局次長 陰山 卓也 （長野県長野市大字長野旭町1108） | D186: 2023-04-03 | E186: 株式会社ULTIMATE SECURITY＆DELIGHT 長野県長野市大字鶴賀権堂町2201-23ﾎﾟﾚｽﾀｰ長野大通り1103 | F186: 4100001034470 | G186: 一般競争入札 | H186: 1820313 | I186: 1098603 | J186: =ROUNDDOWN(I186/H186,3) -> 0.603 | K186: 単価契約
A187: 184 | B187: 宅配便送達業務委託契約 | C187: 支出負担行為担当官代理 横浜地方法務局次長 高木 一浩 （神奈川県横浜市中区北仲通5-57） | D187: 2023-04-03 | E187: 佐川急便株式会社 京都府京都市南区上鳥羽角田町68 | F187: 8130001000053 | G187: 一般競争入札 | H187: 1294708 | I187: 1099527 | J187: =ROUNDDOWN(I187/H187,3) -> 0.849 | K187: 単価契約
A188: 185 | B188: 法務省民事局登記情報センター日常清掃及び定期清掃業務の請負 一式 | C188: 支出負担行為担当官 法務省大臣官房会計課長 民野 健治 （東京都千代田区霞が関1-1-1） | D188: 2023-04-03 | E188: 有限会社総合ビルメンテナンス 千葉県我孫子市南新木4-23-2 | F188: 1040002096420 | G188: 一般競争入札 | H188: 1289000 | I188: 1100000 | J188: =ROUNDDOWN(I188/H188,3) -> 0.853
A189: 186 | B189: 津法務総合庁舎中央監視装置等保守点検業務委託契約 | C189: 支出負担行為担当官 津地方検察庁検事正 菊池 和史 （三重県津市中央3-12） | D189: 2023-04-03 | E189: ジョンソンコントロールズ株式会社 東京都渋谷区笹塚1-50-1 | F189: 8011001046081 | G189: 一般競争入札 | H189: 1265000 | I189: 1100000 | J189: =ROUNDDOWN(I189/H189,3) -> 0.869 | K189: 一括調達（中部地方更生保護委員会）
A190: 187 | B190: 令和5年度複合機保守 | C190: 支出負担行為担当官代理 高松矯正管区総務課長 原田 千尋 （香川県高松市丸の内1-1） | D190: 2023-04-03 | E190: 株式会社原誠文堂 香川県高松市郷東町23-8 | F190: 8470001003427 | G190: 一般競争入札 | H190: 1126488 | I190: 1104400 | J190: =ROUNDDOWN(I190/H190,3) -> 0.98 | K190: 単価契約
A191: 188 | B191: 上半期分被収容者用食料品購入（243品目） | C191: 支出負担行為担当官代理 大阪刑務所総務部長 上田 智久 （大阪府堺市堺区田出井町6-1） | D191: 2023-04-03 | E191: 旭漬物味噌株式会社 大阪府大阪市北区天満2-2-4 | F191: 4120001009173 | G191: 一般競争入札 | H191: 1816128 | I191: 1106676 | J191: =ROUNDDOWN(I191/H191,3) -> 0.609 | K191: 単価契約 卯の花外4件
A192: 189 | B192: 供託金等警備搬送業務委託契約 | C192: 支出負担行為担当官 名古屋法務局長 加藤 裕 （愛知県名古屋市中区三の丸2-2-1） | D192: 2023-04-03 | E192: NXキャッシュ・ロジスティクス株式会社中日本支店 愛知県名古屋市中村区並木1-81-1 | F192: 5010001223230 | G192: 一般競争入札 | H192: 1621892 | I192: 1108800 | J192: =ROUNDDOWN(I192/H192,3) -> 0.683
A193: 190 | B193: 庁舎機械警備業務委託契約 | C193: 支出負担行為担当官 釧路地方法務局長 西山 悟 （北海道釧路市幸町10-3） | D193: 2023-04-03 | E193: セコム株式会社 東京都渋谷区神宮前1-5-1 | F193: 6011001035920 | G193: 一般競争入札 | H193: 1339536 | I193: 1108800 | J193: =ROUNDDOWN(I193/H193,3) -> 0.827 | K193: 国庫債務負担行為
A194: 191 | B194: 令和5年度名古屋拘置所職員宿舎昇降機保守点検業務契約 | C194: 支出負担行為担当官 名古屋拘置所長 小川 雅之 （愛知県名古屋市東区白壁1-1） | D194: 2023-04-03 | E194: フジテック株式会社名古屋支店 愛知県名古屋市中区錦2-2-2 | F194: 3060001009212 | G194: 一般競争入札 | H194: 1146684 | I194: 1108800 | J194: =ROUNDDOWN(I194/H194,3) -> 0.966
A195: 192 | B195: 令和5年度エレベーター保守点検委託業務契約 三菱製10機 | C195: 支出負担行為担当官代理 札幌刑務所処遇部長 鈴木 一之 （北海道札幌市東区東苗穂2-1-5-1） | D195: 2023-04-03 | E195: ジャパンエレベーターサービス北海道株式会社 北海道札幌市豊平区水車町6-3-1 | F195: 6430001068120 | G195: 一般競争入札 | H195: 3036000 | I195: 1108800 | J195: =ROUNDDOWN(I195/H195,3) -> 0.365
A196: 193 | B196: 供託金警備輸送委託契約 | C196: 支出負担行為担当官 和歌山地方法務局長 夏見 聡 （和歌山県和歌山市二番丁3） | D196: 2023-04-03 | E196: NXキャッシュ・ロジスティクス株式会社 東京都千代田区神田和泉町2 | F196: 5010001223230 | G196: 一般競争入札 | H196: 1475859 | I196: 1115400 | J196: =ROUNDDOWN(I196/H196,3) -> 0.755
A197: 194 | B197: 福島合同庁舎ほか4庁舎における自家用電気工作物保安管理業務委託契約 | C197: 支出負担行為担当官 福島地方法務局長 長橋 範夫 （福島県福島市霞町1-46） | D197: 2023-04-03 | E197: 一般財団法人東北電気保安協会福島事業本部 福島県福島市矢剣町1-22 | F197: 2370005003380 | G197: 一般競争入札 | H197: 1118580 | I197: 1118191 | J197: =ROUNDDOWN(I197/H197,3) -> 0.999 | K197: 一括調達（東北管区行政評価局、東北厚生局、福島労働局、仙台出入国在留管理局、福島地方検察庁、東北農政局） 予定価格総額 1,959,645円 契約金額総額 1,931,160円
A198: 195 | B198: 岐阜地方法務局美濃加茂支局及び多治見支局機械警備業務委託契約 | C198: 支出負担行為担当官 岐阜地方法務局長 竹内 秀明 （岐阜県岐阜市金竜町5-13） | D198: 2023-04-03 | E198: 日本ガード株式会社 岐阜県岐阜市茜部中島2-66-6 | F198: 6200001003959 | G198: 一般競争入札 | H198: 1122000 | I198: 1122000 | J198: =ROUNDDOWN(I198/H198,3) -> 1 | K198: 国庫債務負担行為
A199: 196 | B199: 宇和島地方合同庁舎及び松山地方法務局大洲支局エレベーター設備保守点検業務一式 | C199: 支出負担行為担当官 松山地方法務局長 松崎 元彦 （愛媛県松山市宮田町188-6） | D199: 2023-04-03 | E199: フジテック株式会社四国営業所 香川県高松市寿町1-4-3 | F199: 3160001009212 | G199: 一般競争入札 | H199: 1164594 | I199: 1123056 | J199: =ROUNDDOWN(I199/H199,3) -> 0.964 | K199: 一括調達（四国地方厚生保護委員会、愛媛労働局、防衛省自衛隊） 予定価格総額 1,498,860円 契約金額総額 1,445,400円
A200: 197 | B200: 鹿児島第2地方合同庁舎電気・機械設備等保守業務委託契約 | C200: 支出負担行為担当官 鹿児島地方法務局長 林 健児 （鹿児島県鹿児島市鴨池新町1-2） | D200: 2023-04-03 | E200: 株式会社南日本総合サービス 鹿児島県鹿児島市小川町15-1 | F200: 5340001004250 | G200: 一般競争入札 | H200: 1168742 | I200: 1140487 | J200: =ROUNDDOWN(I200/H200,3) -> 0.975 | K200: 一括調達（福岡管区気象台、自衛隊鹿児島地方協力本部、九州地方環境事務所、九州公安調査局、九州厚生局、【第十管区海上保安本部】） 予定価格総額 18,670,000円 契約金額総額 18,218,640円
... 2391 more rows
